{"text_format":"1","workbook":"xlsx","n_sheets":10,"sheets":["Introduktion","1.1. Nulägesanalys","1.2. Resultat av nulägesanalys","2.1. Viktiga utmaningar","2.2. Möjliga insatser","2.3. Sammanställning","steg 2 - data","clear2","Variabler","clearnulageinmatning"],"not_rendered":{"charts":0,"images":6,"macros":1,"external_links":0,"defined_names":10,"comments":0,"pivot_tables":0},"unopened":[],"bounds":{"document_bytes":16777216,"sheet_cells":100000,"rows_first":2000,"rows_last":500,"rows_between":2000,"halvings":0,"cell_chars":16384,"cell_head_chars":4096},"cells_cut":0,"cells_raw":0,"read":"whole","date_system":"1900"}

{"sheet":"Introduktion","index":0,"n_rows":31,"n_cols":5,"rows_kept":31,"cut":false,"hidden":false,"merged":[[27,1,27,2],[28,1,28,2],[29,1,29,2],[30,1,30,2],[3,1,5,4],[18,1,19,1],[20,1,22,1],[25,1,25,2],[26,1,26,2],[14,1,14,4],[8,1,9,4],[10,1,10,4],[11,1,11,4]]}
[]
[]
[null,"Introduktion till detta verktyg"]
[null,"Denna fil, Verktyg för stärkt patientsäkerhet inom kunskapsstyrning, är utvecklad av Nationell samverkansgrupp för patientsäkerhet (NSG patientsäkerhet) i samverkan med Sveriges Kommuner och Regioner (SKR). Syftet är att stödja de nationella programområdena (NPO) i deras kunskapsstyrning för ökad patientsäkerhet, i enlighet med den nationella handlingsplanen för ökad patientsäkerhet. Verktyget innehåller ett stöd för nulägesanalys av patientsäkerhetsarbetet inom programområdet samt för att identifiera och prioritera bland möjliga insatser för att möta utmaningarna och därmed stärka kunskapsstyrningen för patientsäkerhet inom programområdet på lång sikt. \n\nVerktyget är ett stöd i två delar: \n- Del 1. Stöd för att genomföra en nulägesanalys av patientsäkerhetsarbetet inom ert programområde\n- Del 2. Stöd för att sortera och prioritera bland möjliga insatser för att möta utmaningarna\n\nNotera följande avseende funktionaliteten i verktyget: \n- För full funktionalitet i verktyget är det viktigt att använda knapparna under respektive flik för att ta er mellan flikarna. Detta säkerställer att all information följer med till nästa sida.\n- Det kan ta några sekunder för Excelfilen att ladda när ni klickar er vidare mellan de olika stegen, detta är helt normalt och beror på att information bearbetas från de olika flikarna.\n\nHur kan jag spara/rensa svar?\nOm ni laddar ner filen på er dator och klickar på \"spara\" innan ni stänger ner Excel, kan ni öppna upp filen vid senare tillfälle och fortsätta där ni lämnade. För att nollställa hela verktyget finns en knapp längst ned på denna sida. Notera att allt ni fyllt i kommer att raderas om ni väljer att klicka på denna knapp. Om ni enbart vill nollställa det ni fyllt i under en viss flik, går detta att göra under varje enskild flik. \n"]
[]
[]
[]
[null,"Använd det tillhörande genomförandestödet"]
[null,"Till verktyget finns ett genomförandestöd i två delar. I del 1 beskrivs hur verktyget är avsett att användas och viktiga begrepp och koncept förklaras. I del 2 beskrivs de fokusområden, förutsättningar och patientsäkerhetsteman som bygger upp nulägesanalysen. Det är rekommenderat att ta stöd i genomförandestödet såväl under förberedelser som genomförandet. Underlaget kan hittas via kunskapsstyrningsorganisationens webbsida, länk nedan.\n\n"]
[]
[null,"Länk till webbsida"]
[null,"Kortfattade beskrivningar av innehållet i detta verktyg samt av svarsalternativen för nulägesanalysens frågor finns även nedan. "]
[]
[null,"Upplever ni tekniska problem?"]
[null,"Funktionaliteten i Excelfilen är uppbyggd med hjälp av så kallade makron. Beroende på vilka säkerhetsinställningar ni har kan ni behöva acceptera/godkänna att makron används när filen öppnas. Vissa datorer kan ha grundinställningar för Excel som inaktiverar alla makron utan att visa något meddelande. Det går då att använda filen genom att spara denna på en betrodd plats. Ni lägger till en betrodd plats genom att:\n- Klicka på Arkiv i menyfliksområdet i denna fil --> Klicka sedan på Alternativ.\n- Klicka på Säkerhetscenter --> Inställningar för Säkerhetscenter --> Betrodda platser.\n- Klicka på Lägg till ny plats.\n- Klicka på Bläddra. Leta upp och välj en mapp. Klicka på OK.\n\nFör att viktig funktionalitet inte ska försvinna är det även viktigt att använda en senare version av Excel. Filen går inte att använda i Excel 2003–2007. "]
[]
[null,"Innehåll och kort om användning"]
[null,"Del","Flik","Innehåll","Stöd för användning"]
[null,1,"1.1. Nulägesanalys","Nulägesanalys av patientsäkerhetsarbetet inom programområdet, uppdelad utifrån sex områden: fem fokusområden samt grundläggande förutsättningar. Totalt omfattar dessa områden 18 patientsäkerhetsteman. Förutsättningen Patienten som medskapare omfattar även fyra delaspekter.\n\nFör respektive tema/delaspekt ställs tre flervalsfrågor (A-C) samt en fritextfråga (D).","Här genomför ni nulägesanalysen. Ljust orangea svarsfält innehåller svarsalternativ. Grå svarsfält fylls i med fritext. \n1. Välj rätt programområde från rullistan överst i fliken \n2. Skriv vilka som genomför nulägesanalysen samt vilka delar av programområdet  som inkluderats i nulägesanalysen \n3. Besvara A-C frågor för respektive tema/delaspekt \n4. Skriv en kortfattad förklaring av ert resonemang under fråga D för respektive tema/delaspekt\n\nFem möjliga svarsalternativ finns för A-C-frågorna (se beskrivningar av dessa i  genomförandestödet). För att helt ta bort ett ifyllt svar markera cellen och tryck på \"Delete\".\n\nEfter att samtliga frågor besvarats, gå vidare till resultatet genom att trycka på knappen \"Visa resultat av nulägesanalys\""]
[null,null,"1.2. Resultat av nulägesanalys","Automatiskt genererad sammanställning av resultatet från genomförd nulägesanalys.","Efter genomförd nulägesanalys får ni här en överblick över teman med väl fungerande patientsäkerhetsarbete, teman med identifierade utmaningar/utvecklingsområden samt teman där det anses saknas tillräcklig information om nuläget. Översikten kan skrivas ut.\n\nFör att gå vidare till del 2 för att prioritera teman och identifiera möjliga insatser, tryck på knappen \"Gå vidare till del 2 för att identifiera och prioritera möjliga insatser\""]
[null,2,"2.1. Viktiga utmaningar","Flik för att, utifrån resultatet av nulägesanalysen, identifiera de teman som anses prioriterade att hantera för att främja patientsäkerhetsarbetet inom programområdet. Denna prioritering görs i kolumnen längst till höger. ","Markera de teman med någon form av utmaning eller brist på information om nuläget som enligt er bedömning är prioriterade att hantera för att främja patientsäkerhetsarbetet inom programområdet. Detta görs genom att klicka på den orangea cellen till höger om temat och välja \"Prioritera\" i listan, alternativt genom att skriva Prioritera i fältet. Det går även att markera eller skriva \"Arbete pågår\", \"Under kontroll\" eller \"Avvakta\" för de teman ni inte väljer att prioritera i detta steg, men detta är inte nödvändigt för att gå vidare. Observera att det i nästa steg endast är möjligt att ta fram insatser för de teman ni valt att prioritera i detta steg.\n\nTryck sedan på knappen \"Gå vidare till nästa steg\""]
[null,null,"2.2. Möjliga insatser","Flik för att beskriva möjliga insatser kopplade till de teman som prioriterats i föregående steg. För respektive insats beskrivs även aktör som bör agera, bedömning av resursåtgång och förväntad effekt av genomförd åtgärd.","Fyll i de grå och orangea fälten:\n1. Välj område\n2. Välj det tema inom området som du vill beskriva en insats för\n3. Beskriv insatsen och aktör i de grå fritextfälten\n4. Välj nästa tema att beskriva en insats för. Notera att det kan vara relevant att välja samma tema flera gånger, då flera insatser kan vara relevanta, exempelvis då olika aktörer behöver genomföra olika typer av insatser.\n5. Om aktören är annan än ert NPO, beskriv då vilka kontakter ni bör ta (vem ska kontaktas, hur och av vem?)\n6. Efter att insatser och aktör formulerats för samtliga prioriterade teman: genomför en bedömning av uppskattad resursåtgång och förväntad effekt för att genomföra respektive insats. Om annan aktör än NPO bör bedöma den uppskattade resursåtgången  ange \"Annan aktör bedömer\" i denna kolumn. Bedömningen genererar prioriteringsordningen längst till höger. \n\nTryck sedan på knappen \"Gå vidare till sammanställning\""]
[null,null,"2.3. Sammanställning ","Automatiskt genererad sammanställning av insatserna sorterade i prioriteringsordningen. ","Här får ni en överblick över insatserna i prioriteringsordning, där de insatser som bedöms kräva minst resurser och innebära störst förväntad nytta listas överst. Prioriteringsvärdena ligger mellan 7 och 2, där 7 är det högsta möjliga prioriteringsvärdet. Sammanställningen är ett stöd för att kunna ta fram en plan för hur patientsäkerhetsarbetet inom programområdet kan stärkas.\n\nFör att filtrera och sortera i resultatet, använd pilknapparna i rubrikraden (se rödmarkerat exempel nedan):\n\n\n\n"]
[]
[null,"Svarsalternativ för nulägesanalysens flervalsfrågor"]
[null,"Svarsalternativ",null,"Fylls i när följande gäller","Symbol i resultatfliken "]
[null,"Ja",null,"När det går att svara ja för samtliga delar av programområdet som analyserats.",2]
[null,"Ja, i huvudsak",null,"När det går att svara ja, men med mindre undantag inom de delar av programområdet som analyserats.",1]
[null,"Till viss del ",null,"När det går att svara ja bara till viss del eller enbart för vissa av de delar av programområdet som analyserats. Ett eller flera viktiga undantag kan finnas, exempelvis inom en av de stora diagnosgrupperna.",-1]
[null,"Nej",null,"När svaret är nej för samtliga delar av programområdet som analyserats.",-2]
[null,"Tillräcklig info saknas",null,"När de som genomför nulägesanalysen har brist på information om nuläget inom de delar av programområdet som analyserats. Detta svarsalternativ används när det finns ett behov av ytterligare kartläggning/inhämtning av information för att besvara om utmaningar föreligger eller ej. ",0]

{"sheet":"1.1. Nulägesanalys","index":1,"n_rows":309,"n_cols":9,"rows_kept":309,"cut":false,"hidden":false,"merged":[[8,7,20,8],[55,7,62,8],[2,1,2,4],[4,1,4,4],[1,2,1,4],[6,1,6,4],[3,1,3,4],[5,1,5,4],[13,2,13,4]]}
[]
[null," ","Kort instruktion: I denna flik genomför ni er nulägesanalys. Ange först bakgrundsinformation. Tryck på cellen nedan för att välja inom vilket NPO analysen utförs. I fälten under fyller ni i vilka aktörer/personer som deltagit i genomförandet samt vilka delar av NPO som omfattas av svaren i nulägesanalysen (exempelvis hela NPO, ett RPO eller en NAG). I del 1 av genomförandestödet finns exempel på hur det går att organisera arbetet med verktyget."]
[null,"Välj NPO från listan"]
[null,"Nulägesanalys genomförd av:"]
[null,null,null,null,null,null,null,"A-C-frågor besvarade",{"$f":"COUNTIF($D$20:$D$315,\">\"\"\")","v":0}]
[null,"Nulägesanalysen avser:"]
[null,null,null,null,null,null,null,"A-C-frågor som återstår att besvara",{"$f":"66-I5","v":66}]
[]
[null,null,"Grundläggande förutsättningar för patientsäkerhetsarbete",null,null,null,null,"Forts. instruktion \nEfter att ni fyllt i bakgrundsinformationen överst på sidan, påbörja nulägesanalysen:\n1. Besvara frågorna A-C för temat (genom att klicka två gånger på svarsfältet för att se svarsalternativen)\n2. Beskriv i fritextfältet under fråga D en kortfattad förklaring av ert resonemang kring svaren i frågorna A-C  \n3. Gå vidare till nästa tema\n4. När hela nulägesanalysen genomförts, gå vidare till resultatet. OBS. Använd knappen \"Visa resultat av nulägesanalys\" för att gå vidare \n\nLästips i genomförandestödet:\n- Del 1, instruktioner och tips på s. 11\n- Del 2, beskrivningar av teman "]
[]
[]
[null,"0.1","Engagerad ledning och styrning"]
[]
[null,null,"En engagerad ledning och tydlig styrning är avgörande för en säker vård, på alla nivåer och en viktig aspekt i huvudmännens arbete för en säker vård. Det är en av fyra grundläggande förutsättningar för en säker vård som finns i den nationella handlingsplanen för ökad patientsäkerhet i hälso- och sjukvården 2020-2024. Detta är dock inte ett eget tema i verktyget som tagits fram för användning inom NPO. "]
[]
[]
[]
[null,"0.2","En god säkerhetskultur","Svar","Besvarad"]
[]
[null,"A","Finns kunskap om moment och processer inom programområdet som medför risk där det är särskilt viktigt med en god säkerhetskultur?",null,{"$f":"IF(D20>\"\",\"þ\",\"o\")","v":"o"}]
[]
[null,"B","Finns kunskapsstöd för säkerhetskulturarbete lämpligt för/anpassat utifrån programområdets förutsättningar och behov?",null,{"$f":"IF(D22>\"\",\"þ\",\"o\")","v":"o"}]
[]
[null,"C","Finns en kultur som stärker patientsäkerheten vid team-arbete  samt specifika moment och processer inom programområdet som kan medföra risk?",null,{"$f":"IF(D24>\"\",\"þ\",\"o\")","v":"o"}]
[]
[null,"D","Beskriv kortfattat utmaningarna/var det saknas information om nuläget:"]
[]
[]
[]
[]
[null,"0.3","Adekvat kunskap och kompetens"]
[]
[null,"A","Finns kunskap om vad chefer och medarbetare behöver veta och kunna för att arbeta patientsäkert inom programområdet? Ex. för att kunna utveckla patientsäkra processer samt analysera och agera på omständigheter som påverkar patientsäkerheten. ",null,{"$f":"IF(D33>\"\",\"þ\",\"o\")","v":"o"}]
[]
[null,"B","Finns utbildningar och andra typer av stöd riktade till chefer och medarbetare för att bidra till adekvat kunskap och kompetens?",null,{"$f":"IF(D35>\"\",\"þ\",\"o\")","v":"o"}]
[]
[null,"C","Utbildas chefer och medarbetare för att upprätthålla adekvat kunskap och kompetens och säkerställs en adekvat kunskapsnivå?",null,{"$f":"IF(D37>\"\",\"þ\",\"o\")","v":"o"}]
[]
[null,"D","Beskriv kortfattat utmaningarna/var det saknas information om nuläget:"]
[]
[]
[]
[]
[null,"0.4","Patienten som medskapare"]
[]
[null,"A","Finns kunskap om varför patientmedverkan i vård och utvecklingsarbete är viktigt och hur patienter och närstående ska göras delaktiga?",null,{"$f":"IF(D46>\"\",\"þ\",\"o\")","v":"o"}]
[]
[null,"B","Finns kunskapsstöd för att göra patienter och närstående delaktiga i vård och utvecklingsarbete inom programområdet?",null,{"$f":"IF(D48>\"\",\"þ\",\"o\")","v":"o"}]
[]
[null,"C","Görs patienter och närstående till aktiva medskapare i den egna vården och i utvecklingsarbete i tillräckligt stor utsträckning?",null,{"$f":"IF(D50>\"\",\"þ\",\"o\")","v":"o"}]
[]
[null,"D","Beskriv kortfattat utmaningarna/var det saknas information om nuläget:"]
[]
[]
[]
[null,null,null,null,null,null,null,"Fyra delaspekter\nAtt involvera patienten är viktigt inom samtliga delar av patientsäkerhetsarbetet. Inom den grundläggande förutsättningen Patienten som medskapare svarar ni här på frågor utifrån fyra av de fem fokusområdena (FO 1, 2, 3, 5). Genom att samla dessa aspekter får ni i nästa flik en samlad bild av arbetet för att involvera patienter utifrån dessa fokusområden. "]
[null,"FO1","Patienter och närståendes erfarenheter av vårdskador"]
[]
[null,"A","Finns kunskap om hur patienter och närståendes upplevelser av vårdskador ska tillvaratas inom programområdet?",null,{"$f":"IF(D59>\"\",\"þ\",\"o\")","v":"o"}]
[]
[null,"B","Finns detta beskrivet i kunskapsstöd riktade till berörda aktörer inom hälso- och sjukvården, inklusive patienter? ",null,{"$f":"IF(D61>\"\",\"þ\",\"o\")","v":"o"}]
[]
[null,"C","Efterfrågas och sammanställs upplevelserna?",null,{"$f":"IF(D63>\"\",\"þ\",\"o\")","v":"o"}]
[]
[null,"D","Beskriv kortfattat utmaningarna/var det saknas information om nuläget:"]
[]
[]
[]
[]
[null,"FO2","Patientmedverkan i utveckling av processer och arbetssätt"]
[]
[null,"A","Finns kunskap om hur patienter och närstående bör involveras i utvärdering och utveckling av processer och arbetssätt?",null,{"$f":"IF(D72>\"\",\"þ\",\"o\")","v":"o"}]
[]
[null,"B","Finns detta beskrivet i kunskapsstöd?",null,{"$f":"IF(D74>\"\",\"þ\",\"o\")","v":"o"}]
[]
[null,"C","Involveras patienter i utveckling av processer och arbetssätt?",null,{"$f":"IF(D76>\"\",\"þ\",\"o\")","v":"o"}]
[]
[null,"D","Beskriv kortfattat utmaningarna/var det saknas information om nuläget:"]
[]
[]
[]
[]
[null,"FO3","Patientens delaktighet i den egna vården"]
[]
[null,"A","Finns kunskap om vilka aspekter och förutsättningar som behöver beaktas för att patienter ska kunna involveras som medskapare i att göra vården säkrare? Kan vara relevant exempelvis för barn, äldre, patienter med kognitiva funktionsnedsättningar, språksvårigheter m.m. och bero på typ av vårdinsatser (inneliggande jmf. med öppenvård, hög jmf. med låg grad av egenvård osv.).  ",null,{"$f":"IF(D85>\"\",\"þ\",\"o\")","v":"o"}]
[]
[null,"B","Finns detta beskrivet i kunskapsstöd?",null,{"$f":"IF(D87>\"\",\"þ\",\"o\")","v":"o"}]
[]
[null,"C","Finns en patientdelaktighet som främjar patientsäkerhet i det dagliga arbetet?",null,{"$f":"IF(D89>\"\",\"þ\",\"o\")","v":"o"}]
[]
[null,"D","Beskriv kortfattat utmaningarna/var det saknas information om nuläget:"]
[]
[]
[]
[]
[null,"FO5","Patientmedverkan för ökad riskmedvetenhet och beredskap"]
[]
[null,"A","Finns kunskap om hur patienter och närstående kan involveras i arbetet för en ökad riskmedvetenhet och beredskap?",null,{"$f":"IF(D98>\"\",\"þ\",\"o\")","v":"o"}]
[]
[null,"B","Beskrivs detta i stöd till berörda aktörer?",null,{"$f":"IF(D100>\"\",\"þ\",\"o\")","v":"o"}]
[]
[null,"C","Medverkar patienter i den långsiktiga planeringen?",null,{"$f":"IF(D102>\"\",\"þ\",\"o\")","v":"o"}]
[]
[null,"D","Beskriv kortfattat utmaningarna/var det saknas information om nuläget:"]
[]
[]
[]
[null,1,"Fokusområde 1: Öka kunskap om inträffade vårdskador"]
[]
[]
[null,"1.1","Identifiering, sammanställning och aggregering av information om vårdskador"]
[]
[null,"A","Finns det kunskap om vilka de vanligaste och allvarligaste vårdskadorna är inom programområdet?",null,{"$f":"IF(D113>\"\",\"þ\",\"o\")","v":"o"}]
[]
[null,"B","Beskriver kunskapsstöd hur identifiering, mätning och sammanställning av vårdskador kan genomföras?",null,{"$f":"IF(D115>\"\",\"þ\",\"o\")","v":"o"}]
[]
[null,"C","Används metoder för identifiering, mätning och sammanställning? Är täckningsgraden tillfredsställande?",null,{"$f":"IF(D117>\"\",\"þ\",\"o\")","v":"o"}]
[]
[null,"D","Beskriv kortfattat utmaningarna/var det saknas information om nuläget:"]
[]
[]
[]
[]
[null,"1.2","Minimering av effekter av negativa händelser"]
[]
[null,"A","Finns kunskap om hur effekter av negativa händelser som har medfört skada minimeras, inklusive hur patienter, närstående och personal kan stödjas?",null,{"$f":"IF(D126>\"\",\"þ\",\"o\")","v":"o"}]
[]
[null,"B","Finns kunskapsstöd till berörda aktörer för att stödja involverade vid negativa händelser?",null,{"$f":"IF(D128>\"\",\"þ\",\"o\")","v":"o"}]
[]
[null,"C","Tillämpas bästa tillgängliga kunskap för att minimera negativa följdeffekter?",null,{"$f":"IF(D130>\"\",\"þ\",\"o\")","v":"o"}]
[]
[null,"D","Beskriv kortfattat utmaningarna/var det saknas information om nuläget:"]
[]
[]
[]
[null,2,"Fokusområde 2: Tillförlitliga och säkra system och processer "]
[]
[]
[null,"2.1","Tillförlitliga och säkra vårdprocesser och rutiner som omfattar patientens väg i hälso- och sjukvården"]
[]
[null,"A","Finns kunskap om vad som är säkra processer och rutiner, som omfattar hela patientens väg i vården och som reducerar specifika riskmoment, inom programområdet?",null,{"$f":"IF(D141>\"\",\"þ\",\"o\")","v":"o"}]
[]
[null,"B","Beskrivs dessa, inklusive riskmoment, i kunskapsstöd som främjar användande av bästa tillgängliga kunskap?",null,{"$f":"IF(D143>\"\",\"þ\",\"o\")","v":"o"}]
[]
[null,"C","Finns en god följsamhet till säkra processer och rutiner?",null,"o"]
[]
[null,"D","Beskriv kortfattat utmaningarna/var det saknas information om nuläget:"]
[]
[]
[]
[]
[null,"2.2","Kunskapsbaserade verktyg, metoder och arbetssätt för ett patientsäkert arbete"]
[]
[null,"A","Finns kunskap om verktyg, metoder och arbetssätt som bidrar till en säkrare vård i samband med specifika kliniska processer inom programområdet, såsom överrapportering, bedömning av status eller behandling, t.ex. skattningsverktyg, verktyg för strukturerad kommunikation eller checklistor vid kirurgi?",null,{"$f":"IF(D154>\"\",\"þ\",\"o\")","v":"o"}]
[]
[null,"B","Finns för kunskapsområdet lämpliga/anpassade stöd för att vägleda och främja användning av dessa verktyg, metoder och arbetssätt?",null,{"$f":"IF(D156>\"\",\"þ\",\"o\")","v":"o"}]
[]
[null,"C","Tillämpas relevanta verktyg, metoder och arbetssätt?",null,{"$f":"IF(D158>\"\",\"þ\",\"o\")","v":"o"}]
[]
[null,"D","Beskriv kortfattat utmaningarna/var det saknas information om nuläget:"]
[]
[]
[]
[]
[null,"2.3","Medicinteknik, medicintekniska produkter, hjälpmedel och välfärdsteknik"]
[]
[null,"A","Finns kunskap om vad som utgör patientsäker medicinteknik, medicintekniska produkter, hjälpmedel och välfärdsteknik inom programområdet?",null,{"$f":"IF(D167>\"\",\"þ\",\"o\")","v":"o"}]
[]
[null,"B","Finns kunskapsstöd lämpade för/anpassade till programområdet som säkerställer att patientsäkerhet beaktas vid beslut om och användning av medicinteknik, medicintekniska produkter, hjälpmedel och välfärdsteknik?",null,{"$f":"IF(D169>\"\",\"þ\",\"o\")","v":"o"}]
[]
[null,"C","Används medicinteknik, medicintekniska produkter, hjälpmedel och välfärdsteknik som bidrar till en säker vård inom programområdet?",null,"o"]
[]
[null,"D","Beskriv kortfattat utmaningarna/var det saknas information om nuläget:"]
[]
[]
[]
[null,3,"Fokusområde 3: Säker vård här och nu "]
[]
[]
[null,"3.1","Förmåga att förutse variationer och störningar i närtid"]
[]
[null,"A","Finns kunskap om möjliga variationer och störningar som kan uppstå i närtid och medföra förhöjd risk för vårdskador inom programområdet? Ex. organisatoriska störningar, i samband med överlämningar, för olika patientgrupper etc. ",null,{"$f":"IF(D182>\"\",\"þ\",\"o\")","v":"o"}]
[]
[null,"B","Finns för programområdet lämpliga/anpassade verktyg, metoder och arbetssätt för att monitorera och förutse variationer och störningar i närtid?",null,{"$f":"IF(D184>\"\",\"þ\",\"o\")","v":"o"}]
[]
[null,"C","Finns förmåga att upptäcka störningar och variationer i närtid inom programområdet?",null,"o"]
[]
[null,"D","Beskriv kortfattat utmaningarna/var det saknas information om nuläget:"]
[]
[]
[]
[]
[null,"3.2","Situationsanpassning"]
[]
[null,"A","Finns kunskap om hur det inom programområdet går att hantera variationer och störningar i närtid?",null,{"$f":"IF(D195>\"\",\"þ\",\"o\")","v":"o"}]
[]
[null,"B","Finns för programområdet lämpliga/anpassade verktyg, metoder och arbetssätt för detta?",null,{"$f":"IF(D197>\"\",\"þ\",\"o\")","v":"o"}]
[]
[null,"C","Finns förmåga att anpassa vården utifrån störningar och variationer i närtid inom programområdet?",null,"o"]
[]
[null,"D","Beskriv kortfattat utmaningarna/var det saknas information om nuläget:"]
[]
[]
[]
[null,4,"Fokusområde 4: Stärka analys, lärande och utveckling"]
[]
[]
[null,"4.1","Uppföljning av patientsäkerheten genom insamling och sammanställnig av data från flera källor"]
[]
[null,"A","Finns kunskap om vilken information och vilka datakällor som kan användas för att skapa förutsättningar för analys och lärande rörande patientsäkerhet inom programområdet? Ex. data om vårdskador, klagomål, riskanalyser, utredning av händelser, kvalitetsindikatorer, observationer, FRAM-analys, trender och omvärldsanalys.",null,{"$f":"IF(D210>\"\",\"þ\",\"o\")","v":"o"}]
[]
[null,"B","Finns verktyg och stöd för informationsinsamling som är lämpliga för/anpassade till programområdet?",null,{"$f":"IF(D212>\"\",\"þ\",\"o\")","v":"o"}]
[]
[null,"C","Samlas och sammanställs informationen?",null,"o"]
[]
[null,"D","Beskriv kortfattat utmaningarna/var det saknas information om nuläget:"]
[]
[]
[]
[]
[null,"4.2","Analyser som möjliggör lärande"]
[]
[null,"A","Finns kunskap om hur data, både kring risker och det som fungerar bra, ska analyseras ur ett säkerhetsperspektiv inom programområdet?",null,{"$f":"IF(D223>\"\",\"þ\",\"o\")","v":"o"}]
[]
[null,"B","Finns stöd och verktyg för analys lämpliga för/anpassade till programområdet?",null,{"$f":"IF(D225>\"\",\"þ\",\"o\")","v":"o"}]
[]
[null,"C","Sker analyser av patientsäkerhet av data från olika källor?",null,"o"]
[]
[null,"D","Beskriv kortfattat utmaningarna/var det finns brist på information:"]
[]
[]
[]
[]
[null,"4.3","Lärande från analyser och det egna arbetet"]
[]
[null,"A","Finns kunskap om hur resultat kan omvandlas till slutsatser och lärdomar rörande patientsäkerhet inom programområdet?",null,{"$f":"IF(D236>\"\",\"þ\",\"o\")","v":"o"}]
[]
[null,"B","Finns stöd för t.ex. strategi- och/eller verksamhetsutveckling?",null,{"$f":"IF(D238>\"\",\"þ\",\"o\")","v":"o"}]
[]
[null,"C","Används och omsätts lärdomar för att utveckla säkerheten vården?",null,"o"]
[]
[null,"D","Beskriv kortfattat utmaningarna/var det saknas information om nuläget:"]
[]
[]
[]
[]
[null,"4.4","Spridning av kunskap och lärdomar"]
[]
[null,"A","Finns kunskap om hur lärdomar om risker och vad som fungerar bra kan visualiseras och spridas på ett sätt som främjar utveckling inom och utanför den organisation där de tagits fram?  ",null,{"$f":"IF(D249>\"\",\"þ\",\"o\")","v":"o"}]
[]
[null,"B","Finns plattformar och stöd för kunskapsspridning?",null,{"$f":"IF(D251>\"\",\"þ\",\"o\")","v":"o"}]
[]
[null,"C","Sprids kunskap och lärdomar på ett sätt som kontinuerligt utvecklar vården och bland annat motverkar att negativa händelser upprepas?",null,"o"]
[]
[null,"D","Beskriv kortfattat utmaningarna/var det saknas information om nuläget:"]
[]
[]
[]
[null,5,"Fokusområde 5: Öka riskmedvetenhet och beredskap"]
[]
[]
[null,"5.1","Riskkontroll"]
[]
[null,"A","Finns kunskap om hur risk ska vägas mot nytta inom programområdet när vård bedrivs under förhållanden som medför ökad risk? Ex. vid personalbrist och överbeläggningar. ",null,{"$f":"IF(D264>\"\",\"þ\",\"o\")","v":"o"}]
[]
[null,"B","Finns stöd för risk-nytta-bedömningar riktade till berörda aktörer? ",null,{"$f":"IF(D266>\"\",\"þ\",\"o\")","v":"o"}]
[]
[null,"C","Genomförs relevanta risk-nytta-bedömningar på ett adekvat sätt i situationer som medför ökad risk inom programområdet?",null,"o"]
[]
[null,"D","Beskriv kortfattat utmaningarna/var det saknas information om nuläget:"]
[]
[]
[]
[]
[null,"5.2","Färdighetsträning och simulering för ökad beredskap"]
[]
[null,"A","Finns det kunskap om hur simulering samt beredskaps- och färdighetsträning kan användas för att utveckla färdigheter inom programområdet?",null,{"$f":"IF(D277>\"\",\"þ\",\"o\")","v":"o"}]
[]
[null,"B","Finns för kunskapsområdet lämpliga/anpassade stöd för att vägleda och främja användning av dessa utbildningsmetoder?",null,{"$f":"IF(D279>\"\",\"þ\",\"o\")","v":"o"}]
[]
[null,"C","Sker kompetensutveckling som omfattar dessa metoder?",null,"o"]
[]
[null,"D","Beskriv kortfattat utmaningarna/var det saknas information om nuläget:"]
[]
[]
[]
[]
[null,"5.3","Beredskap och planering för hantering av risker på lång sikt"]
[]
[null,"A","Finns kunskap om strategiska förändringar som på sikt kan påverka patientsäkerheten inom programområdet? Ex. kompetensförsörjning, digitalisering, nivåstrukturering och omställning till nära vård.",null,{"$f":"IF(D290>\"\",\"þ\",\"o\")","v":"o"}]
[]
[null,"B","Finns stöd som beskriver hur dessa kan bevakas och hanteras proaktivt?",null,{"$f":"IF(D292>\"\",\"þ\",\"o\")","v":"o"}]
[]
[null,"C","Genomförs proaktiv planering och riskhantering?",null,"o"]
[]
[null,"D","Beskriv kortfattat utmaningarna/var det saknas information om nuläget:"]
[]
[]
[]
[]
[null,"5.4","Omvärldsbevakning ur ett patientsäkerhetsperspektiv"]
[]
[null,"A","Finns kunskap om relevanta patientsäkerhetsperspektiv som bör omfattas av omvärldsbevakning inom programområdet? Ex. potentiella akuta eller långsiktiga risker, ny kunskap eller nya stöd.",null,{"$f":"IF(D303>\"\",\"þ\",\"o\")","v":"o"}]
[]
[null,"B","Finns stöd för systematisk omvärldsbevakning?",null,{"$f":"IF(D305>\"\",\"þ\",\"o\")","v":"o"}]
[]
[null,"C","Sker en systematisk omvärldsbevakning av relevanta patientsäkerhetsperspektiv?",null,"o"]
[]
[null,"D","Beskriv kortfattat utmaningarna/var det saknas information om nuläget:"]

{"sheet":"1.2. Resultat av nulägesanalys","index":2,"n_rows":35,"n_cols":8,"rows_kept":35,"cut":false,"hidden":false,"merged":[[10,7,14,9],[9,8,9,9],[5,1,5,5],[2,1,2,5],[1,1,1,5],[3,1,3,5],[7,8,7,9],[8,8,8,9]]}
[]
[null,{"$f":"\"Resultat av nulägesanalys, \"&'1.1. Nulägesanalys'!B3:E3&\"\"","v":"Resultat av nulägesanalys, Välj NPO från listan"}]
[null,{"$f":"\"\"&'1.1. Nulägesanalys'!B5:E5&\"\"","v":""}]
[null,{"$f":"\"\"&'1.1. Nulägesanalys'!B7:E7&\"\"","v":""}]
[]
[null,"Information: Nedan visas resultatet av genomförd nulägesanalys. Om ni vill justera/uppdatera analysen, gå tillbaka till föregående sida i verktyget (flik 1.1). Om delar av beskrivningen av utmaningar, hinder och möjliggörare är dold går det bra att bredda raderna genom att i vänstermarginalen (se pil) dubbelklicka på strecket mellan raderna. OBS. Använd knappen högst upp till höger för att gå vidare till nästa steg.\nLästips i genomförandestödet: s. 14"]
[]
[null,"Grundläggande förutsättningar för patientsäkerhetsarbete","A. Tillräcklig kunskap?","B. Tillräckliga stöd?","C. Används kunskap och stöd?","D. Beskrivning av utmaningar eller var det saknas information om nuläget"]
[null,{"$f":"'1.1. Nulägesanalys'!C18","v":"En god säkerhetskultur"},{"$f":"IFERROR(VLOOKUP('1.1. Nulägesanalys'!D20,Variabler!$D$3:$E$7,2,FALSE),\"\")","v":""},{"$f":"IFERROR(VLOOKUP('1.1. Nulägesanalys'!D22,Variabler!$D$3:$E$7,2,FALSE),\"\")","v":""},{"$f":"IFERROR(VLOOKUP('1.1. Nulägesanalys'!D24,Variabler!$D$3:$E$7,2,FALSE),\"\")","v":""},{"$f":"IF('1.1. Nulägesanalys'!C27>\"\",'1.1. Nulägesanalys'!C27,\"\")","v":""}]
[null,{"$f":"'1.1. Nulägesanalys'!C31","v":"Adekvat kunskap och kompetens"},{"$f":"IFERROR(VLOOKUP('1.1. Nulägesanalys'!D33,Variabler!$D$3:$E$7,2,FALSE),\"\")","v":""},{"$f":"IFERROR(VLOOKUP('1.1. Nulägesanalys'!D35,Variabler!$D$3:$E$7,2,FALSE),\"\")","v":""},{"$f":"IFERROR(VLOOKUP('1.1. Nulägesanalys'!D37,Variabler!$D$3:$E$7,2,FALSE),\"\")","v":""},{"$f":"IF('1.1. Nulägesanalys'!C40>\"\",'1.1. Nulägesanalys'!C40,\"\")","v":""}]
[null,{"$f":"'1.1. Nulägesanalys'!C44","v":"Patienten som medskapare"},{"$f":"IFERROR(VLOOKUP('1.1. Nulägesanalys'!D46,Variabler!$D$3:$E$7,2,FALSE),\"\")","v":""},{"$f":"IFERROR(VLOOKUP('1.1. Nulägesanalys'!D48,Variabler!$D$3:$E$7,2,FALSE),\"\")","v":""},{"$f":"IFERROR(VLOOKUP('1.1. Nulägesanalys'!D50,Variabler!$D$3:$E$7,2,FALSE),\"\")","v":""},{"$f":"IF('1.1. Nulägesanalys'!C53>\"\",'1.1. Nulägesanalys'!C53,\"\")","v":""},null,"Samlad nulägesbild av arbetet för att involvera patienter \nHär samlas resultatet avseende Patienten som medskapare. De fyra kursiva delaspekterna belyser ert arbete för att involvera patienter utifrån fyra av de fem fokusområdena (FO 1, 2, 3, 5). "]
[null,{"$f":"'1.1. Nulägesanalys'!C57","v":"Patienter och närståendes erfarenheter av vårdskador"},{"$f":"IFERROR(VLOOKUP('1.1. Nulägesanalys'!D59,Variabler!$D$3:$E$7,2,FALSE),\"\")","v":""},{"$f":"IFERROR(VLOOKUP('1.1. Nulägesanalys'!D61,Variabler!$D$3:$E$7,2,FALSE),\"\")","v":""},{"$f":"IFERROR(VLOOKUP('1.1. Nulägesanalys'!D63,Variabler!$D$3:$E$7,2,FALSE),\"\")","v":""},{"$f":"IF('1.1. Nulägesanalys'!C66>\"\",'1.1. Nulägesanalys'!C66,\"\")","v":""}]
[null,{"$f":"'1.1. Nulägesanalys'!C70","v":"Patientmedverkan i utveckling av processer och arbetssätt"},{"$f":"IFERROR(VLOOKUP('1.1. Nulägesanalys'!D72,Variabler!$D$3:$E$7,2,FALSE),\"\")","v":""},{"$f":"IFERROR(VLOOKUP('1.1. Nulägesanalys'!D74,Variabler!$D$3:$E$7,2,FALSE),\"\")","v":""},{"$f":"IFERROR(VLOOKUP('1.1. Nulägesanalys'!D76,Variabler!$D$3:$E$7,2,FALSE),\"\")","v":""},{"$f":"IF('1.1. Nulägesanalys'!C79>\"\",'1.1. Nulägesanalys'!C79,\"\")","v":""}]
[null,{"$f":"'1.1. Nulägesanalys'!C83","v":"Patientens delaktighet i den egna vården"},{"$f":"IFERROR(VLOOKUP('1.1. Nulägesanalys'!D85,Variabler!$D$3:$E$7,2,FALSE),\"\")","v":""},{"$f":"IFERROR(VLOOKUP('1.1. Nulägesanalys'!D87,Variabler!$D$3:$E$7,2,FALSE),\"\")","v":""},{"$f":"IFERROR(VLOOKUP('1.1. Nulägesanalys'!D89,Variabler!$D$3:$E$7,2,FALSE),\"\")","v":""},{"$f":"IF('1.1. Nulägesanalys'!C92>\"\",'1.1. Nulägesanalys'!C92,\"\")","v":""}]
[null,{"$f":"'1.1. Nulägesanalys'!C96","v":"Patientmedverkan för ökad riskmedvetenhet och beredskap"},{"$f":"IFERROR(VLOOKUP('1.1. Nulägesanalys'!D98,Variabler!$D$3:$E$7,2,FALSE),\"\")","v":""},{"$f":"IFERROR(VLOOKUP('1.1. Nulägesanalys'!D100,Variabler!$D$3:$E$7,2,FALSE),\"\")","v":""},{"$f":"IFERROR(VLOOKUP('1.1. Nulägesanalys'!D102,Variabler!$D$3:$E$7,2,FALSE),\"\")","v":""},{"$f":"IF('1.1. Nulägesanalys'!C105>\"\",'1.1. Nulägesanalys'!C105,\"\")","v":""}]
[null,"\nFokusområde 1: Öka kunskap om inträffade vårdskador"]
[null,{"$f":"'1.1. Nulägesanalys'!C111","v":"Identifiering, sammanställning och aggregering av information om vårdskador"},{"$f":"IFERROR(VLOOKUP('1.1. Nulägesanalys'!D113,Variabler!$D$3:$E$7,2,FALSE),\"\")","v":""},{"$f":"IFERROR(VLOOKUP('1.1. Nulägesanalys'!D115,Variabler!$D$3:$E$7,2,FALSE),\"\")","v":""},{"$f":"IFERROR(VLOOKUP('1.1. Nulägesanalys'!D117,Variabler!$D$3:$E$7,2,FALSE),\"\")","v":""},{"$f":"IF('1.1. Nulägesanalys'!C120>\"\",'1.1. Nulägesanalys'!C120,\"\")","v":""}]
[null,{"$f":"'1.1. Nulägesanalys'!C124","v":"Minimering av effekter av negativa händelser"},{"$f":"IFERROR(VLOOKUP('1.1. Nulägesanalys'!D126,Variabler!$D$3:$E$7,2,FALSE),\"\")","v":""},{"$f":"IFERROR(VLOOKUP('1.1. Nulägesanalys'!D128,Variabler!$D$3:$E$7,2,FALSE),\"\")","v":""},{"$f":"IFERROR(VLOOKUP('1.1. Nulägesanalys'!D130,Variabler!$D$3:$E$7,2,FALSE),\"\")","v":""},{"$f":"IF('1.1. Nulägesanalys'!C133>\"\",'1.1. Nulägesanalys'!C133,\"\")","v":""}]
[null,"\nFokusområde 2: Tillförlitliga och säkra system och processer "]
[null,{"$f":"'1.1. Nulägesanalys'!C139","v":"Tillförlitliga och säkra vårdprocesser och rutiner som omfattar patientens väg i hälso- och sjukvården"},{"$f":"IFERROR(VLOOKUP('1.1. Nulägesanalys'!D141,Variabler!$D$3:$E$7,2,FALSE),\"\")","v":""},{"$f":"IFERROR(VLOOKUP('1.1. Nulägesanalys'!D143,Variabler!$D$3:$E$7,2,FALSE),\"\")","v":""},{"$f":"IFERROR(VLOOKUP('1.1. Nulägesanalys'!D145,Variabler!$D$3:$E$7,2,FALSE),\"\")","v":""},{"$f":"IF('1.1. Nulägesanalys'!C148>\"\",'1.1. Nulägesanalys'!C148,\"\")","v":""}]
[null,{"$f":"'1.1. Nulägesanalys'!C152","v":"Kunskapsbaserade verktyg, metoder och arbetssätt för ett patientsäkert arbete"},{"$f":"IFERROR(VLOOKUP('1.1. Nulägesanalys'!D154,Variabler!$D$3:$E$7,2,FALSE),\"\")","v":""},{"$f":"IFERROR(VLOOKUP('1.1. Nulägesanalys'!D156,Variabler!$D$3:$E$7,2,FALSE),\"\")","v":""},{"$f":"IFERROR(VLOOKUP('1.1. Nulägesanalys'!D158,Variabler!$D$3:$E$7,2,FALSE),\"\")","v":""},{"$f":"IF('1.1. Nulägesanalys'!C161>\"\",'1.1. Nulägesanalys'!C161,\"\")","v":""}]
[null,{"$f":"'1.1. Nulägesanalys'!C165","v":"Medicinteknik, medicintekniska produkter, hjälpmedel och välfärdsteknik"},{"$f":"IFERROR(VLOOKUP('1.1. Nulägesanalys'!D167,Variabler!$D$3:$E$7,2,FALSE),\"\")","v":""},{"$f":"IFERROR(VLOOKUP('1.1. Nulägesanalys'!D169,Variabler!$D$3:$E$7,2,FALSE),\"\")","v":""},{"$f":"IFERROR(VLOOKUP('1.1. Nulägesanalys'!D171,Variabler!$D$3:$E$7,2,FALSE),\"\")","v":""},{"$f":"IF('1.1. Nulägesanalys'!C174>\"\",'1.1. Nulägesanalys'!C174,\"\")","v":""}]
[null,"\nFokusområde 3: Säker vård här och nu"]
[null,{"$f":"'1.1. Nulägesanalys'!C180","v":"Förmåga att förutse variationer och störningar i närtid"},{"$f":"IFERROR(VLOOKUP('1.1. Nulägesanalys'!D182,Variabler!$D$3:$E$7,2,FALSE),\"\")","v":""},{"$f":"IFERROR(VLOOKUP('1.1. Nulägesanalys'!D184,Variabler!$D$3:$E$7,2,FALSE),\"\")","v":""},{"$f":"IFERROR(VLOOKUP('1.1. Nulägesanalys'!D186,Variabler!$D$3:$E$7,2,FALSE),\"\")","v":""},{"$f":"IF('1.1. Nulägesanalys'!C189>\"\",'1.1. Nulägesanalys'!C189,\"\")","v":""}]
[null,{"$f":"'1.1. Nulägesanalys'!C193","v":"Situationsanpassning"},{"$f":"IFERROR(VLOOKUP('1.1. Nulägesanalys'!D195,Variabler!$D$3:$E$7,2,FALSE),\"\")","v":""},{"$f":"IFERROR(VLOOKUP('1.1. Nulägesanalys'!D197,Variabler!$D$3:$E$7,2,FALSE),\"\")","v":""},{"$f":"IFERROR(VLOOKUP('1.1. Nulägesanalys'!D199,Variabler!$D$3:$E$7,2,FALSE),\"\")","v":""},{"$f":"IF('1.1. Nulägesanalys'!C202>\"\",'1.1. Nulägesanalys'!C202,\"\")","v":""}]
[null,"\nFokusområde 4: Stärka analys, lärande och utveckling"]
[null,{"$f":"'1.1. Nulägesanalys'!C208","v":"Uppföljning av patientsäkerheten genom insamling och sammanställnig av data från flera källor"},{"$f":"IFERROR(VLOOKUP('1.1. Nulägesanalys'!D210,Variabler!$D$3:$E$7,2,FALSE),\"\")","v":""},{"$f":"IFERROR(VLOOKUP('1.1. Nulägesanalys'!D212,Variabler!$D$3:$E$7,2,FALSE),\"\")","v":""},{"$f":"IFERROR(VLOOKUP('1.1. Nulägesanalys'!D214,Variabler!$D$3:$E$7,2,FALSE),\"\")","v":""},{"$f":"IF('1.1. Nulägesanalys'!C217>\"\",'1.1. Nulägesanalys'!C217,\"\")","v":""}]
[null,{"$f":"'1.1. Nulägesanalys'!C221","v":"Analyser som möjliggör lärande"},{"$f":"IFERROR(VLOOKUP('1.1. Nulägesanalys'!D223,Variabler!$D$3:$E$7,2,FALSE),\"\")","v":""},{"$f":"IFERROR(VLOOKUP('1.1. Nulägesanalys'!D225,Variabler!$D$3:$E$7,2,FALSE),\"\")","v":""},{"$f":"IFERROR(VLOOKUP('1.1. Nulägesanalys'!D227,Variabler!$D$3:$E$7,2,FALSE),\"\")","v":""},{"$f":"IF('1.1. Nulägesanalys'!C230>\"\",'1.1. Nulägesanalys'!C230,\"\")","v":""}]
[null,{"$f":"'1.1. Nulägesanalys'!C234","v":"Lärande från analyser och det egna arbetet"},{"$f":"IFERROR(VLOOKUP('1.1. Nulägesanalys'!D236,Variabler!$D$3:$E$7,2,FALSE),\"\")","v":""},{"$f":"IFERROR(VLOOKUP('1.1. Nulägesanalys'!D238,Variabler!$D$3:$E$7,2,FALSE),\"\")","v":""},{"$f":"IFERROR(VLOOKUP('1.1. Nulägesanalys'!D240,Variabler!$D$3:$E$7,2,FALSE),\"\")","v":""},{"$f":"IF('1.1. Nulägesanalys'!C243>\"\",'1.1. Nulägesanalys'!C243,\"\")","v":""}]
[null,{"$f":"'1.1. Nulägesanalys'!C247","v":"Spridning av kunskap och lärdomar"},{"$f":"IFERROR(VLOOKUP('1.1. Nulägesanalys'!D249,Variabler!$D$3:$E$7,2,FALSE),\"\")","v":""},{"$f":"IFERROR(VLOOKUP('1.1. Nulägesanalys'!D251,Variabler!$D$3:$E$7,2,FALSE),\"\")","v":""},{"$f":"IFERROR(VLOOKUP('1.1. Nulägesanalys'!D253,Variabler!$D$3:$E$7,2,FALSE),\"\")","v":""},{"$f":"IF('1.1. Nulägesanalys'!C256>\"\",'1.1. Nulägesanalys'!C256,\"\")","v":""}]
[null,"\nFokusområde 5: Öka riskmedvetenhet och beredskap"]
[null,{"$f":"'1.1. Nulägesanalys'!C262","v":"Riskkontroll"},{"$f":"IFERROR(VLOOKUP('1.1. Nulägesanalys'!D264,Variabler!$D$3:$E$7,2,FALSE),\"\")","v":""},{"$f":"IFERROR(VLOOKUP('1.1. Nulägesanalys'!D266,Variabler!$D$3:$E$7,2,FALSE),\"\")","v":""},{"$f":"IFERROR(VLOOKUP('1.1. Nulägesanalys'!D268,Variabler!$D$3:$E$7,2,FALSE),\"\")","v":""},{"$f":"IF('1.1. Nulägesanalys'!C271>\"\",'1.1. Nulägesanalys'!C271,\"\")","v":""}]
[null,{"$f":"'1.1. Nulägesanalys'!C275","v":"Färdighetsträning och simulering för ökad beredskap"},{"$f":"IFERROR(VLOOKUP('1.1. Nulägesanalys'!D277,Variabler!$D$3:$E$7,2,FALSE),\"\")","v":""},{"$f":"IFERROR(VLOOKUP('1.1. Nulägesanalys'!D279,Variabler!$D$3:$E$7,2,FALSE),\"\")","v":""},{"$f":"IFERROR(VLOOKUP('1.1. Nulägesanalys'!D281,Variabler!$D$3:$E$7,2,FALSE),\"\")","v":""},{"$f":"IF('1.1. Nulägesanalys'!C284>\"\",'1.1. Nulägesanalys'!C284,\"\")","v":""}]
[null,{"$f":"'1.1. Nulägesanalys'!C288","v":"Beredskap och planering för hantering av risker på lång sikt"},{"$f":"IFERROR(VLOOKUP('1.1. Nulägesanalys'!D290,Variabler!$D$3:$E$7,2,FALSE),\"\")","v":""},{"$f":"IFERROR(VLOOKUP('1.1. Nulägesanalys'!D292,Variabler!$D$3:$E$7,2,FALSE),\"\")","v":""},{"$f":"IFERROR(VLOOKUP('1.1. Nulägesanalys'!D294,Variabler!$D$3:$E$7,2,FALSE),\"\")","v":""},{"$f":"IF('1.1. Nulägesanalys'!C297>\"\",'1.1. Nulägesanalys'!C297,\"\")","v":""}]
[null,{"$f":"'1.1. Nulägesanalys'!C301","v":"Omvärldsbevakning ur ett patientsäkerhetsperspektiv"},{"$f":"IFERROR(VLOOKUP('1.1. Nulägesanalys'!D303,Variabler!$D$3:$E$7,2,FALSE),\"\")","v":""},{"$f":"IFERROR(VLOOKUP('1.1. Nulägesanalys'!D305,Variabler!$D$3:$E$7,2,FALSE),\"\")","v":""},{"$f":"IFERROR(VLOOKUP('1.1. Nulägesanalys'!D307,Variabler!$D$3:$E$7,2,FALSE),\"\")","v":""},{"$f":"IF('1.1. Nulägesanalys'!C310>\"\",'1.1. Nulägesanalys'!C310,\"\")","v":""}]

{"sheet":"2.1. Viktiga utmaningar","index":3,"n_rows":33,"n_cols":9,"rows_kept":33,"cut":false,"hidden":false,"merged":[[1,1,1,6],[2,1,2,6],[3,1,3,6],[5,8,12,9]]}
[]
[null,{"$f":"\"Prioritering av utmaningar, \"&'1.1. Nulägesanalys'!B3:E3&\"\"","v":"Prioritering av utmaningar, Välj NPO från listan"}]
[null,{"$f":"\"\"&'1.1. Nulägesanalys'!B5:E5&\"\"","v":""}]
[null,{"$f":"\"\"&'1.1. Nulägesanalys'!B7:E7&\"\"","v":""}]
[]
[null,"Fokusområde 1: Öka kunskap om inträffade vårdskador","Finns kunskap?","Finns stöd?","Används kunskap och stöd?","D. Beskrivning av utmaningar eller var det saknas information om nuläget","Välj prioriterade teman:",null,"Kort instruktion:\nPå denna sida markerar ni teman som är prioriterade att ta fram insatser för:\n1. I kolumn G: Välj \"Prioritera\" för de teman som ni bedömer som proriterade att ta fram insatser för \n2. Om ni vill kan ni även beskriva de teman ni vill avvakta med, där ni redan genomför arbeten eller där temat är under kontroll (detta är inte nödvändigt för att gå vidare) \n3. Klicka på knappen \"Gå vidare till nästa steg\"\n\nOm delar av beskrivningen av utmaningar, hinder och möjliggörare är dold går det bra att bredda raderna genom att i vänstermarginalen dubbelklicka på strecket mellan raderna.\n\nLästips i genomförandestödet: del 1, s. 16"]
[null,{"$f":"'1.1. Nulägesanalys'!C18","v":"En god säkerhetskultur"},{"$f":"IFERROR(VLOOKUP('1.1. Nulägesanalys'!D20,Variabler!$D$3:$E$7,2,FALSE),\"\")","v":""},{"$f":"IFERROR(VLOOKUP('1.1. Nulägesanalys'!D22,Variabler!$D$3:$E$7,2,FALSE),\"\")","v":""},{"$f":"IFERROR(VLOOKUP('1.1. Nulägesanalys'!D24,Variabler!$D$3:$E$7,2,FALSE),\"\")","v":""},{"$f":"IF('1.1. Nulägesanalys'!C27>\"\",'1.1. Nulägesanalys'!C27,\"\")","v":""}]
[null,{"$f":"'1.1. Nulägesanalys'!C31","v":"Adekvat kunskap och kompetens"},{"$f":"IFERROR(VLOOKUP('1.1. Nulägesanalys'!D33,Variabler!$D$3:$E$7,2,FALSE),\"\")","v":""},{"$f":"IFERROR(VLOOKUP('1.1. Nulägesanalys'!D35,Variabler!$D$3:$E$7,2,FALSE),\"\")","v":""},{"$f":"IFERROR(VLOOKUP('1.1. Nulägesanalys'!D37,Variabler!$D$3:$E$7,2,FALSE),\"\")","v":""},{"$f":"IF('1.1. Nulägesanalys'!C40>\"\",'1.1. Nulägesanalys'!C40,\"\")","v":""}]
[null,{"$f":"'1.1. Nulägesanalys'!C44","v":"Patienten som medskapare"},{"$f":"IFERROR(VLOOKUP('1.1. Nulägesanalys'!D46,Variabler!$D$3:$E$7,2,FALSE),\"\")","v":""},{"$f":"IFERROR(VLOOKUP('1.1. Nulägesanalys'!D48,Variabler!$D$3:$E$7,2,FALSE),\"\")","v":""},{"$f":"IFERROR(VLOOKUP('1.1. Nulägesanalys'!D50,Variabler!$D$3:$E$7,2,FALSE),\"\")","v":""},{"$f":"IF('1.1. Nulägesanalys'!C53>\"\",'1.1. Nulägesanalys'!C53,\"\")","v":""}]
[null,{"$f":"'1.1. Nulägesanalys'!C57","v":"Patienter och närståendes erfarenheter av vårdskador"},{"$f":"IFERROR(VLOOKUP('1.1. Nulägesanalys'!D59,Variabler!$D$3:$E$7,2,FALSE),\"\")","v":""},{"$f":"IFERROR(VLOOKUP('1.1. Nulägesanalys'!D61,Variabler!$D$3:$E$7,2,FALSE),\"\")","v":""},{"$f":"IFERROR(VLOOKUP('1.1. Nulägesanalys'!D63,Variabler!$D$3:$E$7,2,FALSE),\"\")","v":""},{"$f":"IF('1.1. Nulägesanalys'!C66>\"\",'1.1. Nulägesanalys'!C66,\"\")","v":""}]
[null,{"$f":"'1.1. Nulägesanalys'!C70","v":"Patientmedverkan i utveckling av processer och arbetssätt"},{"$f":"IFERROR(VLOOKUP('1.1. Nulägesanalys'!D72,Variabler!$D$3:$E$7,2,FALSE),\"\")","v":""},{"$f":"IFERROR(VLOOKUP('1.1. Nulägesanalys'!D74,Variabler!$D$3:$E$7,2,FALSE),\"\")","v":""},{"$f":"IFERROR(VLOOKUP('1.1. Nulägesanalys'!D76,Variabler!$D$3:$E$7,2,FALSE),\"\")","v":""},{"$f":"IF('1.1. Nulägesanalys'!C79>\"\",'1.1. Nulägesanalys'!C79,\"\")","v":""}]
[null,{"$f":"'1.1. Nulägesanalys'!C83","v":"Patientens delaktighet i den egna vården"},{"$f":"IFERROR(VLOOKUP('1.1. Nulägesanalys'!D85,Variabler!$D$3:$E$7,2,FALSE),\"\")","v":""},{"$f":"IFERROR(VLOOKUP('1.1. Nulägesanalys'!D87,Variabler!$D$3:$E$7,2,FALSE),\"\")","v":""},{"$f":"IFERROR(VLOOKUP('1.1. Nulägesanalys'!D89,Variabler!$D$3:$E$7,2,FALSE),\"\")","v":""},{"$f":"IF('1.1. Nulägesanalys'!C92>\"\",'1.1. Nulägesanalys'!C92,\"\")","v":""}]
[null,{"$f":"'1.1. Nulägesanalys'!C96","v":"Patientmedverkan för ökad riskmedvetenhet och beredskap"},{"$f":"IFERROR(VLOOKUP('1.1. Nulägesanalys'!D98,Variabler!$D$3:$E$7,2,FALSE),\"\")","v":""},{"$f":"IFERROR(VLOOKUP('1.1. Nulägesanalys'!D100,Variabler!$D$3:$E$7,2,FALSE),\"\")","v":""},{"$f":"IFERROR(VLOOKUP('1.1. Nulägesanalys'!D102,Variabler!$D$3:$E$7,2,FALSE),\"\")","v":""},{"$f":"IF('1.1. Nulägesanalys'!C105>\"\",'1.1. Nulägesanalys'!C105,\"\")","v":""}]
[null,"\nFokusområde 1: Öka kunskap om inträffade vårdskador"]
[null,{"$f":"'1.1. Nulägesanalys'!C111","v":"Identifiering, sammanställning och aggregering av information om vårdskador"},{"$f":"IFERROR(VLOOKUP('1.1. Nulägesanalys'!D113,Variabler!$D$3:$E$7,2,FALSE),\"\")","v":""},{"$f":"IFERROR(VLOOKUP('1.1. Nulägesanalys'!D115,Variabler!$D$3:$E$7,2,FALSE),\"\")","v":""},{"$f":"IFERROR(VLOOKUP('1.1. Nulägesanalys'!D117,Variabler!$D$3:$E$7,2,FALSE),\"\")","v":""},{"$f":"IF('1.1. Nulägesanalys'!C120>\"\",'1.1. Nulägesanalys'!C120,\"\")","v":""}]
[null,{"$f":"'1.1. Nulägesanalys'!C124","v":"Minimering av effekter av negativa händelser"},{"$f":"IFERROR(VLOOKUP('1.1. Nulägesanalys'!D126,Variabler!$D$3:$E$7,2,FALSE),\"\")","v":""},{"$f":"IFERROR(VLOOKUP('1.1. Nulägesanalys'!D128,Variabler!$D$3:$E$7,2,FALSE),\"\")","v":""},{"$f":"IFERROR(VLOOKUP('1.1. Nulägesanalys'!D130,Variabler!$D$3:$E$7,2,FALSE),\"\")","v":""},{"$f":"IF('1.1. Nulägesanalys'!C133>\"\",'1.1. Nulägesanalys'!C133,\"\")","v":""}]
[null,"Fokusområde 2: Tillförlitliga och säkra system och processer "]
[null,{"$f":"'1.1. Nulägesanalys'!C139","v":"Tillförlitliga och säkra vårdprocesser och rutiner som omfattar patientens väg i hälso- och sjukvården"},{"$f":"IFERROR(VLOOKUP('1.1. Nulägesanalys'!D141,Variabler!$D$3:$E$7,2,FALSE),\"\")","v":""},{"$f":"IFERROR(VLOOKUP('1.1. Nulägesanalys'!D143,Variabler!$D$3:$E$7,2,FALSE),\"\")","v":""},{"$f":"IFERROR(VLOOKUP('1.1. Nulägesanalys'!D145,Variabler!$D$3:$E$7,2,FALSE),\"\")","v":""},{"$f":"IF('1.1. Nulägesanalys'!C148>\"\",'1.1. Nulägesanalys'!C148,\"\")","v":""}]
[null,{"$f":"'1.1. Nulägesanalys'!C152","v":"Kunskapsbaserade verktyg, metoder och arbetssätt för ett patientsäkert arbete"},{"$f":"IFERROR(VLOOKUP('1.1. Nulägesanalys'!D154,Variabler!$D$3:$E$7,2,FALSE),\"\")","v":""},{"$f":"IFERROR(VLOOKUP('1.1. Nulägesanalys'!D156,Variabler!$D$3:$E$7,2,FALSE),\"\")","v":""},{"$f":"IFERROR(VLOOKUP('1.1. Nulägesanalys'!D158,Variabler!$D$3:$E$7,2,FALSE),\"\")","v":""},{"$f":"IF('1.1. Nulägesanalys'!C161>\"\",'1.1. Nulägesanalys'!C161,\"\")","v":""}]
[null,{"$f":"'1.1. Nulägesanalys'!C165","v":"Medicinteknik, medicintekniska produkter, hjälpmedel och välfärdsteknik"},{"$f":"IFERROR(VLOOKUP('1.1. Nulägesanalys'!D167,Variabler!$D$3:$E$7,2,FALSE),\"\")","v":""},{"$f":"IFERROR(VLOOKUP('1.1. Nulägesanalys'!D169,Variabler!$D$3:$E$7,2,FALSE),\"\")","v":""},{"$f":"IFERROR(VLOOKUP('1.1. Nulägesanalys'!D171,Variabler!$D$3:$E$7,2,FALSE),\"\")","v":""},{"$f":"IF('1.1. Nulägesanalys'!C174>\"\",'1.1. Nulägesanalys'!C174,\"\")","v":""}]
[null,"\nFokusområde 3: Säker vård här och nu"]
[null,{"$f":"'1.1. Nulägesanalys'!C180","v":"Förmåga att förutse variationer och störningar i närtid"},{"$f":"IFERROR(VLOOKUP('1.1. Nulägesanalys'!D182,Variabler!$D$3:$E$7,2,FALSE),\"\")","v":""},{"$f":"IFERROR(VLOOKUP('1.1. Nulägesanalys'!D184,Variabler!$D$3:$E$7,2,FALSE),\"\")","v":""},{"$f":"IFERROR(VLOOKUP('1.1. Nulägesanalys'!D186,Variabler!$D$3:$E$7,2,FALSE),\"\")","v":""},{"$f":"IF('1.1. Nulägesanalys'!C189>\"\",'1.1. Nulägesanalys'!C189,\"\")","v":""}]
[null,{"$f":"'1.1. Nulägesanalys'!C193","v":"Situationsanpassning"},{"$f":"IFERROR(VLOOKUP('1.1. Nulägesanalys'!D195,Variabler!$D$3:$E$7,2,FALSE),\"\")","v":""},{"$f":"IFERROR(VLOOKUP('1.1. Nulägesanalys'!D197,Variabler!$D$3:$E$7,2,FALSE),\"\")","v":""},{"$f":"IFERROR(VLOOKUP('1.1. Nulägesanalys'!D199,Variabler!$D$3:$E$7,2,FALSE),\"\")","v":""},{"$f":"IF('1.1. Nulägesanalys'!C202>\"\",'1.1. Nulägesanalys'!C202,\"\")","v":""}]
[null,"\nFokusområde 4: Stärka analys, lärande och utveckling"]
[null,{"$f":"'1.1. Nulägesanalys'!C208","v":"Uppföljning av patientsäkerheten genom insamling och sammanställnig av data från flera källor"},{"$f":"IFERROR(VLOOKUP('1.1. Nulägesanalys'!D210,Variabler!$D$3:$E$7,2,FALSE),\"\")","v":""},{"$f":"IFERROR(VLOOKUP('1.1. Nulägesanalys'!D212,Variabler!$D$3:$E$7,2,FALSE),\"\")","v":""},{"$f":"IFERROR(VLOOKUP('1.1. Nulägesanalys'!D214,Variabler!$D$3:$E$7,2,FALSE),\"\")","v":""},{"$f":"IF('1.1. Nulägesanalys'!C217>\"\",'1.1. Nulägesanalys'!C217,\"\")","v":""}]
[null,{"$f":"'1.1. Nulägesanalys'!C221","v":"Analyser som möjliggör lärande"},{"$f":"IFERROR(VLOOKUP('1.1. Nulägesanalys'!D223,Variabler!$D$3:$E$7,2,FALSE),\"\")","v":""},{"$f":"IFERROR(VLOOKUP('1.1. Nulägesanalys'!D225,Variabler!$D$3:$E$7,2,FALSE),\"\")","v":""},{"$f":"IFERROR(VLOOKUP('1.1. Nulägesanalys'!D227,Variabler!$D$3:$E$7,2,FALSE),\"\")","v":""},{"$f":"IF('1.1. Nulägesanalys'!C230>\"\",'1.1. Nulägesanalys'!C230,\"\")","v":""}]
[null,{"$f":"'1.1. Nulägesanalys'!C234","v":"Lärande från analyser och det egna arbetet"},{"$f":"IFERROR(VLOOKUP('1.1. Nulägesanalys'!D236,Variabler!$D$3:$E$7,2,FALSE),\"\")","v":""},{"$f":"IFERROR(VLOOKUP('1.1. Nulägesanalys'!D238,Variabler!$D$3:$E$7,2,FALSE),\"\")","v":""},{"$f":"IFERROR(VLOOKUP('1.1. Nulägesanalys'!D240,Variabler!$D$3:$E$7,2,FALSE),\"\")","v":""},{"$f":"IF('1.1. Nulägesanalys'!C243>\"\",'1.1. Nulägesanalys'!C243,\"\")","v":""}]
[null,{"$f":"'1.1. Nulägesanalys'!C247","v":"Spridning av kunskap och lärdomar"},{"$f":"IFERROR(VLOOKUP('1.1. Nulägesanalys'!D249,Variabler!$D$3:$E$7,2,FALSE),\"\")","v":""},{"$f":"IFERROR(VLOOKUP('1.1. Nulägesanalys'!D251,Variabler!$D$3:$E$7,2,FALSE),\"\")","v":""},{"$f":"IFERROR(VLOOKUP('1.1. Nulägesanalys'!D253,Variabler!$D$3:$E$7,2,FALSE),\"\")","v":""},{"$f":"IF('1.1. Nulägesanalys'!C256>\"\",'1.1. Nulägesanalys'!C256,\"\")","v":""}]
[null,"\nFokusområde 5: Öka riskmedvetenhet och beredskap"]
[null,{"$f":"'1.1. Nulägesanalys'!C262","v":"Riskkontroll"},{"$f":"IFERROR(VLOOKUP('1.1. Nulägesanalys'!D264,Variabler!$D$3:$E$7,2,FALSE),\"\")","v":""},{"$f":"IFERROR(VLOOKUP('1.1. Nulägesanalys'!D266,Variabler!$D$3:$E$7,2,FALSE),\"\")","v":""},{"$f":"IFERROR(VLOOKUP('1.1. Nulägesanalys'!D268,Variabler!$D$3:$E$7,2,FALSE),\"\")","v":""},{"$f":"IF('1.1. Nulägesanalys'!C271>\"\",'1.1. Nulägesanalys'!C271,\"\")","v":""}]
[null,{"$f":"'1.1. Nulägesanalys'!C275","v":"Färdighetsträning och simulering för ökad beredskap"},{"$f":"IFERROR(VLOOKUP('1.1. Nulägesanalys'!D277,Variabler!$D$3:$E$7,2,FALSE),\"\")","v":""},{"$f":"IFERROR(VLOOKUP('1.1. Nulägesanalys'!D279,Variabler!$D$3:$E$7,2,FALSE),\"\")","v":""},{"$f":"IFERROR(VLOOKUP('1.1. Nulägesanalys'!D281,Variabler!$D$3:$E$7,2,FALSE),\"\")","v":""},{"$f":"IF('1.1. Nulägesanalys'!C284>\"\",'1.1. Nulägesanalys'!C284,\"\")","v":""}]
[null,{"$f":"'1.1. Nulägesanalys'!C288","v":"Beredskap och planering för hantering av risker på lång sikt"},{"$f":"IFERROR(VLOOKUP('1.1. Nulägesanalys'!D290,Variabler!$D$3:$E$7,2,FALSE),\"\")","v":""},{"$f":"IFERROR(VLOOKUP('1.1. Nulägesanalys'!D292,Variabler!$D$3:$E$7,2,FALSE),\"\")","v":""},{"$f":"IFERROR(VLOOKUP('1.1. Nulägesanalys'!D294,Variabler!$D$3:$E$7,2,FALSE),\"\")","v":""},{"$f":"IF('1.1. Nulägesanalys'!C297>\"\",'1.1. Nulägesanalys'!C297,\"\")","v":""}]
[null,{"$f":"'1.1. Nulägesanalys'!C301","v":"Omvärldsbevakning ur ett patientsäkerhetsperspektiv"},{"$f":"IFERROR(VLOOKUP('1.1. Nulägesanalys'!D303,Variabler!$D$3:$E$7,2,FALSE),\"\")","v":""},{"$f":"IFERROR(VLOOKUP('1.1. Nulägesanalys'!D305,Variabler!$D$3:$E$7,2,FALSE),\"\")","v":""},{"$f":"IFERROR(VLOOKUP('1.1. Nulägesanalys'!D307,Variabler!$D$3:$E$7,2,FALSE),\"\")","v":""},{"$f":"IF('1.1. Nulägesanalys'!C310>\"\",'1.1. Nulägesanalys'!C310,\"\")","v":""}]

{"sheet":"2.2. Möjliga insatser","index":4,"n_rows":67,"n_cols":34,"rows_kept":67,"cut":false,"hidden":false,"merged":[[1,1,1,3],[2,1,2,3],[3,1,3,3],[5,1,7,3],[10,10,16,10]]}
[]
[null,{"$f":"\"Handlingsalternativ, \"&'1.1. Nulägesanalys'!B3:E3&\"\"","v":"Handlingsalternativ, Välj NPO från listan"},null,null,null,"Prioriterade teman","Prioriterade teman med minst en insats beskriven"]
[null,{"$f":"\"\"&'1.1. Nulägesanalys'!B5:E5&\"\"","v":""},null,null,"Grundläggande förutsättningar",{"$f":"COUNTIF(V11:V19,\">\"\"\")","v":0},{"$f":"COUNTIF(AC11:AC19,\">0\")","v":0},null,null,null,null,null,"Fokusområde 1: Öka kunskap om inträffade vårdskador"]
[null,{"$f":"\"\"&'1.1. Nulägesanalys'!B7:E7&\"\"","v":""},null,null,"Fokusområde 1",{"$f":"COUNTIF(W11:W19,\">\"\"\")","v":0},{"$f":"COUNTIF(AD11:AD19,\">0\")","v":0},null,null,null,null,null,"Fokusområde 2: Tillförlitliga och säkra system och processer "]
[null,null,null,null,"Fokusområde 2",{"$f":"COUNTIF(X11:X19,\">\"\"\")","v":0},{"$f":"COUNTIF(AE11:AE19,\">0\")","v":0},null,null,null,null,null,"Fokusområde 3: Säker vård här och nu"]
[null,"Kort instruktion: På denna sida beskriver ni insatser för era prioriterade teman och uppskattar resursåtgång och förväntad effekt\n1. Välj område i kolumnen nedan (OBS. enbart områden med teman som ni i föregående steg valt att prioritera går att välja)\n2. Välj det tema inom området som du vill beskriva en insats för (enbart era prioriterade teman går att välja)\n3. Beskriv insatser och aktörer i de grå fritextfälten för ett tema i taget. Det går att välja samma tema flera gånger. \n4. Om aktören är annan än ert NPO, beskriv då vilka kontakter ni bör ta (vem ska kontaktas, hur och av vem?)\n5. När ni beskrivit insatser för samtliga prioriterade teman - bedöm resursåtgången av att genomföra respektive insats samt den förväntade effekten på patientsäkerheten, gå sedan vidare till sammanställningen. Om aktören som bör agera är en annan än ert NPO, ange \"Annan aktör bedömer\" i båda dessa kolumner. Lästips i genomförandestödet: del 1, s. 18 samt del 2, kapitel 3. ",null,null,"Fokusområde 3",{"$f":"COUNTIF(Y11:Y19,\">\"\"\")","v":0},{"$f":"COUNTIF(AF11:AF19,\">0\")","v":0},null,null,null,null,null,"Fokusområde 4: Stärka analys, lärande och utveckling"]
[null,null,null,null,"Fokusområde 4",{"$f":"COUNTIF(Z11:Z19,\">\"\"\")","v":0},{"$f":"COUNTIF(AG11:AG19,\">0\")","v":0},null,null,null,null,null,"Fokusområde 5: Öka riskmedvetenhet och beredskap"]
[null,null,null,null,"Fokusområde 5",{"$f":"COUNTIF(AA11:AA19,\">\"\"\")","v":0},{"$f":"COUNTIF(AH11:AH19,\">0\")","v":0},null,null,null,null,null,null,null,null,null,null,null,null,null,null,null,null,null,null,null,null,null,"Ifyllda"]
[null,null,null,null,null,null,null,null,null,null,null,null,null,"Antal fokusområden",null,{"$f":"COUNTIF($T$11:$T$24,\">\"\"\")","v":0},null,null,null,null,null,"Grundläggande förutsättningar för patientsäkerhetsarbete","Fokusområde 1: Öka kunskap om inträffade vårdskador","Fokusområde 2: Tillförlitliga och säkra system och processer ","Fokusområde 3: Säker vård här och nu","Fokusområde 4: Stärka analys, lärande och utveckling","Fokusområde 5: Öka riskmedvetenhet och beredskap",null,"Grundläggande förutsättningar för patientsäkerhetsarbete","Fokusområde 1: Öka kunskap om inträffade vårdskador","Fokusområde 2: Tillförlitliga och säkra system och processer ","Fokusområde 3: Säker vård här och nu","Fokusområde 4: Stärka analys, lärande och utveckling","Fokusområde 5: Öka riskmedvetenhet och beredskap"]
[null,"Välj område","Välj tema","Beskriv insatser för att möta de identifierade utmaningarna","Beskriv vilken/vilka aktörer som bör agera","Om annan aktör än NPO, vilka kontakter bör NPO ta?","Uppskattad resursåtgång","Förväntad effekt","Prio-värde",null,null,null,null,"Aktuell lista","Listkolumn","Aktuell listlängd",null,null,null,"Fokusområden","Aktuell lista",1,2,3,4,5,6,null,1,2,3,4,5,6]
[null,null,null,null,null,null,null,null,{"$f":"IFERROR(IF(G11=\"Annan aktör bedömer\",0,VLOOKUP(G11,Variabler!$C$33:$D$36,2,FALSE)+VLOOKUP(H11,Variabler!$E$32:$F$36,2,FALSE)),\"\")","v":""},null,"Notera att det är viktigt att skriva första insatsen i rad 11, nästa i rad 12, osv. Lämnar ni tomma rader följer insatser under de tomma raderna inte med till sammanställningen i nästa flik.",null,null,{"$f":"HLOOKUP(B11,$V$9:$AB$10,2,FALSE)","v":{"$error":"#N/A"}},{"$f":"N11-1","v":{"$error":"#N/A"}},{"$f":"COUNTIF(OFFSET($V$11:$V$25,0,O11),\">\"\"\")","v":{"$error":"#N/A"}},null,null,null,{"$f":"'steg 2 - data'!B5","v":""},null,{"$f":"'steg 2 - data'!E5","v":""},{"$f":"'steg 2 - data'!G5","v":""},{"$f":"'steg 2 - data'!I5","v":""},{"$f":"'steg 2 - data'!K5","v":""},{"$f":"'steg 2 - data'!M5","v":""},{"$f":"'steg 2 - data'!O5","v":""},null,{"$f":"COUNTIFS($C$11:$C$67,\"=\"&V11,$C$11:$C$67,\">\"\"\")","v":0},{"$f":"COUNTIFS($C$11:$C$67,\"=\"&W11,$C$11:$C$67,\">\"\"\")","v":0},{"$f":"COUNTIFS($C$11:$C$67,\"=\"&X11,$C$11:$C$67,\">\"\"\")","v":0},0,0,0]
[null,null,null,null,null,null,null,null,{"$f":"IFERROR(IF(G12=\"Annan aktör bedömer\",0,VLOOKUP(G12,Variabler!$C$33:$D$36,2,FALSE)+VLOOKUP(H12,Variabler!$E$32:$F$36,2,FALSE)),\"\")","v":""},null,null,null,null,{"$f":"HLOOKUP(B12,$V$9:$AB$10,2,FALSE)","v":{"$error":"#N/A"}},{"$f":"N12-1","v":{"$error":"#N/A"}},{"$f":"COUNTIF(OFFSET($V$11:$V$25,0,O12),\">\"\"\")","v":{"$error":"#N/A"}},null,null,null,{"$f":"'steg 2 - data'!B6","v":""},null,{"$f":"'steg 2 - data'!E6","v":""},{"$f":"'steg 2 - data'!G6","v":""},{"$f":"'steg 2 - data'!I6","v":""},{"$f":"'steg 2 - data'!K6","v":""},{"$f":"'steg 2 - data'!M6","v":""},{"$f":"'steg 2 - data'!O6","v":""},null,{"$f":"COUNTIFS($C$11:$C$67,\"=\"&V12,$C$11:$C$67,\">\"\"\")","v":0},0,0,0,0,0]
[null,null,null,null,null,null,null,null,{"$f":"IFERROR(IF(G13=\"Annan aktör bedömer\",0,VLOOKUP(G13,Variabler!$C$33:$D$36,2,FALSE)+VLOOKUP(H13,Variabler!$E$32:$F$36,2,FALSE)),\"\")","v":""},null,null,null,null,{"$error":"#N/A"},{"$error":"#N/A"},{"$f":"COUNTIF(OFFSET($V$11:$V$25,0,O13),\">\"\"\")","v":{"$error":"#N/A"}},null,null,null,{"$f":"'steg 2 - data'!B7","v":""},null,{"$f":"'steg 2 - data'!E7","v":""},{"$f":"'steg 2 - data'!G7","v":""},{"$f":"'steg 2 - data'!I7","v":""},{"$f":"'steg 2 - data'!K7","v":""},{"$f":"'steg 2 - data'!M7","v":""},{"$f":"'steg 2 - data'!O7","v":""},null,0,0,0,0,0,0]
[null,null,null,null,null,null,null,null,{"$f":"IFERROR(IF(G14=\"Annan aktör bedömer\",0,VLOOKUP(G14,Variabler!$C$33:$D$36,2,FALSE)+VLOOKUP(H14,Variabler!$E$32:$F$36,2,FALSE)),\"\")","v":""},null,null,null,null,{"$error":"#N/A"},{"$error":"#N/A"},{"$error":"#N/A"},null,null,null,{"$f":"'steg 2 - data'!B8","v":""},null,{"$f":"'steg 2 - data'!E8","v":""},{"$f":"'steg 2 - data'!G8","v":""},{"$f":"'steg 2 - data'!I8","v":""},{"$f":"'steg 2 - data'!K8","v":""},{"$f":"'steg 2 - data'!M8","v":""},{"$f":"'steg 2 - data'!O8","v":""},null,0,0,0,0,0,0]
[null,null,null,null,null,null,null,null,{"$f":"IFERROR(IF(G15=\"Annan aktör bedömer\",0,VLOOKUP(G15,Variabler!$C$33:$D$36,2,FALSE)+VLOOKUP(H15,Variabler!$E$32:$F$36,2,FALSE)),\"\")","v":""},null,null,null,null,{"$error":"#N/A"},{"$error":"#N/A"},{"$error":"#N/A"},null,null,null,{"$f":"'steg 2 - data'!B9","v":""},null,{"$f":"'steg 2 - data'!E9","v":""},{"$f":"'steg 2 - data'!G9","v":""},{"$f":"'steg 2 - data'!I9","v":""},{"$f":"'steg 2 - data'!K9","v":""},{"$f":"'steg 2 - data'!M9","v":""},{"$f":"'steg 2 - data'!O9","v":""},null,0,0,0,0,0,0]
[null,null,null,null,null,null,null,null,{"$f":"IFERROR(IF(G16=\"Annan aktör bedömer\",0,VLOOKUP(G16,Variabler!$C$33:$D$36,2,FALSE)+VLOOKUP(H16,Variabler!$E$32:$F$36,2,FALSE)),\"\")","v":""},null,null,null,null,{"$error":"#N/A"},{"$error":"#N/A"},{"$error":"#N/A"},null,null,null,{"$f":"'steg 2 - data'!B10","v":""},null,{"$f":"'steg 2 - data'!E10","v":""},{"$f":"'steg 2 - data'!G10","v":""},{"$f":"'steg 2 - data'!I10","v":""},{"$f":"'steg 2 - data'!K10","v":""},{"$f":"'steg 2 - data'!M10","v":""},{"$f":"'steg 2 - data'!O10","v":""},null,0,0,0,0,0,0]
[null,null,null,null,null,null,null,null,{"$f":"IFERROR(IF(G17=\"Annan aktör bedömer\",0,VLOOKUP(G17,Variabler!$C$33:$D$36,2,FALSE)+VLOOKUP(H17,Variabler!$E$32:$F$36,2,FALSE)),\"\")","v":""},null,null,null,null,{"$error":"#N/A"},{"$error":"#N/A"},{"$error":"#N/A"},null,null,null,null,null,{"$f":"'steg 2 - data'!E11","v":""},{"$f":"'steg 2 - data'!G11","v":""},{"$f":"'steg 2 - data'!I11","v":""},{"$f":"'steg 2 - data'!K11","v":""},{"$f":"'steg 2 - data'!M11","v":""},{"$f":"'steg 2 - data'!O11","v":""},null,0,0,0,0,0,0]
[null,null,null,null,null,null,null,null,{"$f":"IFERROR(IF(G18=\"Annan aktör bedömer\",0,VLOOKUP(G18,Variabler!$C$33:$D$36,2,FALSE)+VLOOKUP(H18,Variabler!$E$32:$F$36,2,FALSE)),\"\")","v":""},null,null,null,null,{"$error":"#N/A"},{"$error":"#N/A"},{"$error":"#N/A"},null,null,null,null,null,{"$f":"'steg 2 - data'!E12","v":""},{"$f":"'steg 2 - data'!G12","v":""},{"$f":"'steg 2 - data'!I12","v":""},{"$f":"'steg 2 - data'!K12","v":""},{"$f":"'steg 2 - data'!M12","v":""},{"$f":"'steg 2 - data'!O12","v":""},null,0,0,0,0,0,0]
[null,null,null,null,null,null,null,null,{"$f":"IFERROR(IF(G19=\"Annan aktör bedömer\",0,VLOOKUP(G19,Variabler!$C$33:$D$36,2,FALSE)+VLOOKUP(H19,Variabler!$E$32:$F$36,2,FALSE)),\"\")","v":""},null,null,null,null,{"$error":"#N/A"},{"$error":"#N/A"},{"$error":"#N/A"},null,null,null,null,null,{"$f":"'steg 2 - data'!E13","v":""},{"$f":"'steg 2 - data'!G13","v":""},{"$f":"'steg 2 - data'!I13","v":""},{"$f":"'steg 2 - data'!K13","v":""},{"$f":"'steg 2 - data'!M13","v":""},{"$f":"'steg 2 - data'!O13","v":""},null,0,0,0,0,0,0]
[null,null,null,null,null,null,null,null,{"$f":"IFERROR(IF(G20=\"Annan aktör bedömer\",0,VLOOKUP(G20,Variabler!$C$33:$D$36,2,FALSE)+VLOOKUP(H20,Variabler!$E$32:$F$36,2,FALSE)),\"\")","v":""},null,null,null,null,{"$error":"#N/A"},{"$error":"#N/A"},{"$error":"#N/A"},null,null,null,null,null,{"$f":"'steg 2 - data'!E14","v":""},{"$f":"'steg 2 - data'!G14","v":""}]
[null,null,null,null,null,null,null,null,{"$f":"IFERROR(IF(G21=\"Annan aktör bedömer\",0,VLOOKUP(G21,Variabler!$C$33:$D$36,2,FALSE)+VLOOKUP(H21,Variabler!$E$32:$F$36,2,FALSE)),\"\")","v":""},null,null,null,null,{"$error":"#N/A"},{"$error":"#N/A"},{"$error":"#N/A"},null,null,null,null,null,{"$f":"'steg 2 - data'!E15","v":""},{"$f":"'steg 2 - data'!G15","v":""}]
[null,null,null,null,null,null,null,null,{"$f":"IFERROR(IF(G22=\"Annan aktör bedömer\",0,VLOOKUP(G22,Variabler!$C$33:$D$36,2,FALSE)+VLOOKUP(H22,Variabler!$E$32:$F$36,2,FALSE)),\"\")","v":""},null,null,null,null,{"$error":"#N/A"},{"$error":"#N/A"},{"$error":"#N/A"}]
[null,null,null,null,null,null,null,null,{"$f":"IFERROR(IF(G23=\"Annan aktör bedömer\",0,VLOOKUP(G23,Variabler!$C$33:$D$36,2,FALSE)+VLOOKUP(H23,Variabler!$E$32:$F$36,2,FALSE)),\"\")","v":""},null,null,null,null,{"$error":"#N/A"},{"$error":"#N/A"},{"$error":"#N/A"}]
[null,null,null,null,null,null,null,null,{"$f":"IFERROR(IF(G24=\"Annan aktör bedömer\",0,VLOOKUP(G24,Variabler!$C$33:$D$36,2,FALSE)+VLOOKUP(H24,Variabler!$E$32:$F$36,2,FALSE)),\"\")","v":""},null,null,null,null,{"$error":"#N/A"},{"$error":"#N/A"},{"$error":"#N/A"}]
[null,null,null,null,null,null,null,null,{"$f":"IFERROR(IF(G25=\"Annan aktör bedömer\",0,VLOOKUP(G25,Variabler!$C$33:$D$36,2,FALSE)+VLOOKUP(H25,Variabler!$E$32:$F$36,2,FALSE)),\"\")","v":""},null,null,null,null,{"$error":"#N/A"},{"$error":"#N/A"},{"$error":"#N/A"}]
[null,null,null,null,null,null,null,null,{"$f":"IFERROR(IF(G26=\"Annan aktör bedömer\",0,VLOOKUP(G26,Variabler!$C$33:$D$36,2,FALSE)+VLOOKUP(H26,Variabler!$E$32:$F$36,2,FALSE)),\"\")","v":""},null,null,null,null,{"$error":"#N/A"},{"$error":"#N/A"},{"$error":"#N/A"}]
[null,null,null,null,null,null,null,null,{"$f":"IFERROR(IF(G27=\"Annan aktör bedömer\",0,VLOOKUP(G27,Variabler!$C$33:$D$36,2,FALSE)+VLOOKUP(H27,Variabler!$E$32:$F$36,2,FALSE)),\"\")","v":""},null,null,null,null,{"$error":"#N/A"},{"$error":"#N/A"},{"$error":"#N/A"}]
[null,null,null,null,null,null,null,null,{"$f":"IFERROR(IF(G28=\"Annan aktör bedömer\",0,VLOOKUP(G28,Variabler!$C$33:$D$36,2,FALSE)+VLOOKUP(H28,Variabler!$E$32:$F$36,2,FALSE)),\"\")","v":""},null,null,null,null,{"$error":"#N/A"},{"$error":"#N/A"},{"$error":"#N/A"}]
[null,null,null,null,null,null,null,null,{"$f":"IFERROR(IF(G29=\"Annan aktör bedömer\",0,VLOOKUP(G29,Variabler!$C$33:$D$36,2,FALSE)+VLOOKUP(H29,Variabler!$E$32:$F$36,2,FALSE)),\"\")","v":""},null,null,null,null,{"$error":"#N/A"},{"$error":"#N/A"},{"$error":"#N/A"}]
[null,null,null,null,null,null,null,null,{"$f":"IFERROR(IF(G30=\"Annan aktör bedömer\",0,VLOOKUP(G30,Variabler!$C$33:$D$36,2,FALSE)+VLOOKUP(H30,Variabler!$E$32:$F$36,2,FALSE)),\"\")","v":""},null,null,null,null,{"$error":"#N/A"},{"$error":"#N/A"},{"$error":"#N/A"}]
[null,null,null,null,null,null,null,null,{"$f":"IFERROR(IF(G31=\"Annan aktör bedömer\",0,VLOOKUP(G31,Variabler!$C$33:$D$36,2,FALSE)+VLOOKUP(H31,Variabler!$E$32:$F$36,2,FALSE)),\"\")","v":""},null,null,null,null,{"$error":"#N/A"},{"$error":"#N/A"},{"$error":"#N/A"}]
[null,null,null,null,null,null,null,null,{"$f":"IFERROR(IF(G32=\"Annan aktör bedömer\",0,VLOOKUP(G32,Variabler!$C$33:$D$36,2,FALSE)+VLOOKUP(H32,Variabler!$E$32:$F$36,2,FALSE)),\"\")","v":""},null,null,null,null,{"$error":"#N/A"},{"$error":"#N/A"},{"$error":"#N/A"}]
[null,null,null,null,null,null,null,null,{"$f":"IFERROR(IF(G33=\"Annan aktör bedömer\",0,VLOOKUP(G33,Variabler!$C$33:$D$36,2,FALSE)+VLOOKUP(H33,Variabler!$E$32:$F$36,2,FALSE)),\"\")","v":""},null,null,null,null,{"$error":"#N/A"},{"$error":"#N/A"},{"$error":"#N/A"}]
[null,null,null,null,null,null,null,null,{"$f":"IFERROR(IF(G34=\"Annan aktör bedömer\",0,VLOOKUP(G34,Variabler!$C$33:$D$36,2,FALSE)+VLOOKUP(H34,Variabler!$E$32:$F$36,2,FALSE)),\"\")","v":""},null,null,null,null,{"$error":"#N/A"},{"$error":"#N/A"},{"$error":"#N/A"}]
[null,null,null,null,null,null,null,null,{"$f":"IFERROR(IF(G35=\"Annan aktör bedömer\",0,VLOOKUP(G35,Variabler!$C$33:$D$36,2,FALSE)+VLOOKUP(H35,Variabler!$E$32:$F$36,2,FALSE)),\"\")","v":""},null,null,null,null,{"$error":"#N/A"},{"$error":"#N/A"},{"$error":"#N/A"}]
[null,null,null,null,null,null,null,null,{"$f":"IFERROR(IF(G36=\"Annan aktör bedömer\",0,VLOOKUP(G36,Variabler!$C$33:$D$36,2,FALSE)+VLOOKUP(H36,Variabler!$E$32:$F$36,2,FALSE)),\"\")","v":""},null,null,null,null,{"$error":"#N/A"},{"$error":"#N/A"},{"$error":"#N/A"}]
[null,null,null,null,null,null,null,null,{"$f":"IFERROR(IF(G37=\"Annan aktör bedömer\",0,VLOOKUP(G37,Variabler!$C$33:$D$36,2,FALSE)+VLOOKUP(H37,Variabler!$E$32:$F$36,2,FALSE)),\"\")","v":""},null,null,null,null,{"$error":"#N/A"},{"$error":"#N/A"},{"$error":"#N/A"}]
[null,null,null,null,null,null,null,null,{"$f":"IFERROR(IF(G38=\"Annan aktör bedömer\",0,VLOOKUP(G38,Variabler!$C$33:$D$36,2,FALSE)+VLOOKUP(H38,Variabler!$E$32:$F$36,2,FALSE)),\"\")","v":""},null,null,null,null,{"$error":"#N/A"},{"$error":"#N/A"},{"$error":"#N/A"}]
[null,null,null,null,null,null,null,null,{"$f":"IFERROR(IF(G39=\"Annan aktör bedömer\",0,VLOOKUP(G39,Variabler!$C$33:$D$36,2,FALSE)+VLOOKUP(H39,Variabler!$E$32:$F$36,2,FALSE)),\"\")","v":""},null,null,null,null,{"$error":"#N/A"},{"$error":"#N/A"},{"$error":"#N/A"}]
[null,null,null,null,null,null,null,null,{"$f":"IFERROR(IF(G40=\"Annan aktör bedömer\",0,VLOOKUP(G40,Variabler!$C$33:$D$36,2,FALSE)+VLOOKUP(H40,Variabler!$E$32:$F$36,2,FALSE)),\"\")","v":""},null,null,null,null,{"$error":"#N/A"},{"$error":"#N/A"},{"$error":"#N/A"}]
[null,null,null,null,null,null,null,null,{"$f":"IFERROR(IF(G41=\"Annan aktör bedömer\",0,VLOOKUP(G41,Variabler!$C$33:$D$36,2,FALSE)+VLOOKUP(H41,Variabler!$E$32:$F$36,2,FALSE)),\"\")","v":""},null,null,null,null,{"$error":"#N/A"},{"$error":"#N/A"},{"$error":"#N/A"}]
[null,null,null,null,null,null,null,null,{"$f":"IFERROR(IF(G42=\"Annan aktör bedömer\",0,VLOOKUP(G42,Variabler!$C$33:$D$36,2,FALSE)+VLOOKUP(H42,Variabler!$E$32:$F$36,2,FALSE)),\"\")","v":""},null,null,null,null,{"$error":"#N/A"},{"$error":"#N/A"},{"$error":"#N/A"}]
[null,null,null,null,null,null,null,null,{"$f":"IFERROR(IF(G43=\"Annan aktör bedömer\",0,VLOOKUP(G43,Variabler!$C$33:$D$36,2,FALSE)+VLOOKUP(H43,Variabler!$E$32:$F$36,2,FALSE)),\"\")","v":""},null,null,null,null,{"$error":"#N/A"},{"$error":"#N/A"},{"$error":"#N/A"}]
[null,null,null,null,null,null,null,null,{"$f":"IFERROR(IF(G44=\"Annan aktör bedömer\",0,VLOOKUP(G44,Variabler!$C$33:$D$36,2,FALSE)+VLOOKUP(H44,Variabler!$E$32:$F$36,2,FALSE)),\"\")","v":""},null,null,null,null,{"$error":"#N/A"},{"$error":"#N/A"},{"$error":"#N/A"}]
[null,null,null,null,null,null,null,null,{"$f":"IFERROR(IF(G45=\"Annan aktör bedömer\",0,VLOOKUP(G45,Variabler!$C$33:$D$36,2,FALSE)+VLOOKUP(H45,Variabler!$E$32:$F$36,2,FALSE)),\"\")","v":""},null,null,null,null,{"$error":"#N/A"},{"$error":"#N/A"},{"$error":"#N/A"}]
[null,null,null,null,null,null,null,null,{"$f":"IFERROR(IF(G46=\"Annan aktör bedömer\",0,VLOOKUP(G46,Variabler!$C$33:$D$36,2,FALSE)+VLOOKUP(H46,Variabler!$E$32:$F$36,2,FALSE)),\"\")","v":""},null,null,null,null,{"$error":"#N/A"},{"$error":"#N/A"},{"$error":"#N/A"}]
[null,null,null,null,null,null,null,null,{"$f":"IFERROR(IF(G47=\"Annan aktör bedömer\",0,VLOOKUP(G47,Variabler!$C$33:$D$36,2,FALSE)+VLOOKUP(H47,Variabler!$E$32:$F$36,2,FALSE)),\"\")","v":""},null,null,null,null,{"$error":"#N/A"},{"$error":"#N/A"},{"$error":"#N/A"}]
[null,null,null,null,null,null,null,null,{"$f":"IFERROR(IF(G48=\"Annan aktör bedömer\",0,VLOOKUP(G48,Variabler!$C$33:$D$36,2,FALSE)+VLOOKUP(H48,Variabler!$E$32:$F$36,2,FALSE)),\"\")","v":""},null,null,null,null,{"$error":"#N/A"},{"$error":"#N/A"},{"$error":"#N/A"}]
[null,null,null,null,null,null,null,null,{"$f":"IFERROR(IF(G49=\"Annan aktör bedömer\",0,VLOOKUP(G49,Variabler!$C$33:$D$36,2,FALSE)+VLOOKUP(H49,Variabler!$E$32:$F$36,2,FALSE)),\"\")","v":""},null,null,null,null,{"$error":"#N/A"},{"$error":"#N/A"},{"$error":"#N/A"}]
[null,null,null,null,null,null,null,null,{"$f":"IFERROR(IF(G50=\"Annan aktör bedömer\",0,VLOOKUP(G50,Variabler!$C$33:$D$36,2,FALSE)+VLOOKUP(H50,Variabler!$E$32:$F$36,2,FALSE)),\"\")","v":""},null,null,null,null,{"$error":"#N/A"},{"$error":"#N/A"},{"$error":"#N/A"}]
[null,null,null,null,null,null,null,null,{"$f":"IFERROR(IF(G51=\"Annan aktör bedömer\",0,VLOOKUP(G51,Variabler!$C$33:$D$36,2,FALSE)+VLOOKUP(H51,Variabler!$E$32:$F$36,2,FALSE)),\"\")","v":""},null,null,null,null,{"$error":"#N/A"},{"$error":"#N/A"},{"$error":"#N/A"}]
[null,null,null,null,null,null,null,null,{"$f":"IFERROR(IF(G52=\"Annan aktör bedömer\",0,VLOOKUP(G52,Variabler!$C$33:$D$36,2,FALSE)+VLOOKUP(H52,Variabler!$E$32:$F$36,2,FALSE)),\"\")","v":""},null,null,null,null,{"$error":"#N/A"},{"$error":"#N/A"},{"$error":"#N/A"}]
[null,null,null,null,null,null,null,null,{"$f":"IFERROR(IF(G53=\"Annan aktör bedömer\",0,VLOOKUP(G53,Variabler!$C$33:$D$36,2,FALSE)+VLOOKUP(H53,Variabler!$E$32:$F$36,2,FALSE)),\"\")","v":""},null,null,null,null,{"$error":"#N/A"},{"$error":"#N/A"},{"$error":"#N/A"}]
[null,null,null,null,null,null,null,null,{"$f":"IFERROR(IF(G54=\"Annan aktör bedömer\",0,VLOOKUP(G54,Variabler!$C$33:$D$36,2,FALSE)+VLOOKUP(H54,Variabler!$E$32:$F$36,2,FALSE)),\"\")","v":""},null,null,null,null,{"$error":"#N/A"},{"$error":"#N/A"},{"$error":"#N/A"}]
[null,null,null,null,null,null,null,null,{"$f":"IFERROR(IF(G55=\"Annan aktör bedömer\",0,VLOOKUP(G55,Variabler!$C$33:$D$36,2,FALSE)+VLOOKUP(H55,Variabler!$E$32:$F$36,2,FALSE)),\"\")","v":""},null,null,null,null,{"$error":"#N/A"},{"$error":"#N/A"},{"$error":"#N/A"}]
[null,null,null,null,null,null,null,null,{"$f":"IFERROR(IF(G56=\"Annan aktör bedömer\",0,VLOOKUP(G56,Variabler!$C$33:$D$36,2,FALSE)+VLOOKUP(H56,Variabler!$E$32:$F$36,2,FALSE)),\"\")","v":""},null,null,null,null,{"$error":"#N/A"},{"$error":"#N/A"},{"$error":"#N/A"}]
[null,null,null,null,null,null,null,null,{"$f":"IFERROR(IF(G57=\"Annan aktör bedömer\",0,VLOOKUP(G57,Variabler!$C$33:$D$36,2,FALSE)+VLOOKUP(H57,Variabler!$E$32:$F$36,2,FALSE)),\"\")","v":""},null,null,null,null,{"$error":"#N/A"},{"$error":"#N/A"},{"$error":"#N/A"}]
[null,null,null,null,null,null,null,null,{"$f":"IFERROR(IF(G58=\"Annan aktör bedömer\",0,VLOOKUP(G58,Variabler!$C$33:$D$36,2,FALSE)+VLOOKUP(H58,Variabler!$E$32:$F$36,2,FALSE)),\"\")","v":""},null,null,null,null,{"$error":"#N/A"},{"$error":"#N/A"},{"$error":"#N/A"}]
[null,null,null,null,null,null,null,null,{"$f":"IFERROR(IF(G59=\"Annan aktör bedömer\",0,VLOOKUP(G59,Variabler!$C$33:$D$36,2,FALSE)+VLOOKUP(H59,Variabler!$E$32:$F$36,2,FALSE)),\"\")","v":""},null,null,null,null,{"$error":"#N/A"},{"$error":"#N/A"},{"$error":"#N/A"}]
[null,null,null,null,null,null,null,null,{"$f":"IFERROR(IF(G60=\"Annan aktör bedömer\",0,VLOOKUP(G60,Variabler!$C$33:$D$36,2,FALSE)+VLOOKUP(H60,Variabler!$E$32:$F$36,2,FALSE)),\"\")","v":""},null,null,null,null,{"$error":"#N/A"},{"$error":"#N/A"},{"$error":"#N/A"}]
[null,null,null,null,null,null,null,null,{"$f":"IFERROR(IF(G61=\"Annan aktör bedömer\",0,VLOOKUP(G61,Variabler!$C$33:$D$36,2,FALSE)+VLOOKUP(H61,Variabler!$E$32:$F$36,2,FALSE)),\"\")","v":""},null,null,null,null,{"$error":"#N/A"},{"$error":"#N/A"},{"$error":"#N/A"}]
[null,null,null,null,null,null,null,null,{"$f":"IFERROR(IF(G62=\"Annan aktör bedömer\",0,VLOOKUP(G62,Variabler!$C$33:$D$36,2,FALSE)+VLOOKUP(H62,Variabler!$E$32:$F$36,2,FALSE)),\"\")","v":""},null,null,null,null,{"$error":"#N/A"},{"$error":"#N/A"},{"$error":"#N/A"}]
[null,null,null,null,null,null,null,null,{"$f":"IFERROR(IF(G63=\"Annan aktör bedömer\",0,VLOOKUP(G63,Variabler!$C$33:$D$36,2,FALSE)+VLOOKUP(H63,Variabler!$E$32:$F$36,2,FALSE)),\"\")","v":""},null,null,null,null,{"$error":"#N/A"},{"$error":"#N/A"},{"$error":"#N/A"}]
[null,null,null,null,null,null,null,null,{"$f":"IFERROR(IF(G64=\"Annan aktör bedömer\",0,VLOOKUP(G64,Variabler!$C$33:$D$36,2,FALSE)+VLOOKUP(H64,Variabler!$E$32:$F$36,2,FALSE)),\"\")","v":""},null,null,null,null,{"$error":"#N/A"},{"$error":"#N/A"},{"$error":"#N/A"}]
[null,null,null,null,null,null,null,null,{"$f":"IFERROR(IF(G65=\"Annan aktör bedömer\",0,VLOOKUP(G65,Variabler!$C$33:$D$36,2,FALSE)+VLOOKUP(H65,Variabler!$E$32:$F$36,2,FALSE)),\"\")","v":""},null,null,null,null,{"$error":"#N/A"},{"$error":"#N/A"},{"$error":"#N/A"}]
[null,null,null,null,null,null,null,null,{"$f":"IFERROR(IF(G66=\"Annan aktör bedömer\",0,VLOOKUP(G66,Variabler!$C$33:$D$36,2,FALSE)+VLOOKUP(H66,Variabler!$E$32:$F$36,2,FALSE)),\"\")","v":""},null,null,null,null,{"$error":"#N/A"},{"$error":"#N/A"},{"$error":"#N/A"}]
[null,null,null,null,null,null,null,null,{"$f":"IFERROR(IF(G67=\"Annan aktör bedömer\",0,VLOOKUP(G67,Variabler!$C$33:$D$36,2,FALSE)+VLOOKUP(H67,Variabler!$E$32:$F$36,2,FALSE)),\"\")","v":""},null,null,null,null,{"$error":"#N/A"},{"$error":"#N/A"},{"$error":"#N/A"}]

{"sheet":"2.3. Sammanställning","index":5,"n_rows":6,"n_cols":11,"rows_kept":6,"cut":false,"hidden":false,"merged":[[1,1,1,8],[2,1,2,8],[3,1,3,8],[5,10,20,13]]}
[]
[null,{"$f":"\"Prioritering av utmaningar, \"&'1.1. Nulägesanalys'!B3:E3&\"\"","v":"Prioritering av utmaningar, Välj NPO från listan"}]
[null,{"$f":"\"\"&'1.1. Nulägesanalys'!B5:E5&\"\"","v":""}]
[null,{"$f":"\"\"&'1.1. Nulägesanalys'!B7:E7&\"\"","v":""}]
[null,"Område"]
[null,"Område","Tema","Insats","Aktör","Kontakt","Uppskattad resursåtgång","Förväntad effekt","Prio-värde",null,"Information: På denna sida genereras en sammanställning över de insatser ni beskrivit i föregående steg. Använd pilknapparna för att filtrera ut insatser, ex. inom ett visst tema eller för att sortera om insatserna, ex. utifrån lägst resursåtgång/störst effekt. Om viss text är dold, bredda raderna genom att i vänstermarginalen dubbelklicka på strecket mellan raderna.\n\nOBS! Om ni vill ändra formuleringen av insatser/aktör eller bedömning av priovärde, gör uppdateringarna på föregående sida (flik 2.2). Denna sida bör endast användas för att filtrera och sortera i resultatet.\n\nLästips i genomförandestödet: del 1, s. 24"]

{"sheet":"steg 2 - data","index":6,"n_rows":44,"n_cols":15,"rows_kept":44,"cut":false,"hidden":true,"merged":[]}
[]
["Antal val",{"$f":"COUNTIF(B5:B19,\">\"\"\")","v":0},null,null,{"$f":"COUNTIF(E5:E19,\">\"\"\")","v":0},null,{"$f":"COUNTIF(G5:G19,\">\"\"\")","v":0},null,{"$f":"COUNTIF(I5:I19,\">\"\"\")","v":0},null,{"$f":"COUNTIF(K5:K19,\">\"\"\")","v":0},null,{"$f":"COUNTIF(M5:M19,\">\"\"\")","v":0},null,{"$f":"COUNTIF(O5:O19,\">\"\"\")","v":0}]
[null,null,null,null,"Grundläggande förutsättningar för patientsäkerhetsarbete",null,"Fokusområde 1: Öka kunskap om inträffade vårdskador",null,"Fokusområde 2: Tillförlitliga och säkra system och processer ",null,"Fokusområde 3: Säker vård här och nu",null,"Fokusområde 4: Stärka analys, lärande och utveckling",null,"Fokusområde 5: Öka riskmedvetenhet och beredskap"]
[null,"Fokusområden","Aktuell lista",null,1,null,2,null,3,null,4,null,5,null,6]
[null,{"$f":"IFERROR(INDEX(B$22:B$33,MATCH(ROW()-ROW($Q$4),A$22:A$33,0)),\"\")","v":""},null,null,{"$f":"IFERROR(INDEX(E$22:E$33,MATCH(ROW()-ROW($Q$4),D$22:D$33,0)),\"\")","v":""},null,{"$f":"IFERROR(INDEX(G$22:G$33,MATCH(ROW()-ROW($Q$4),F$22:F$33,0)),\"\")","v":""},null,{"$f":"IFERROR(INDEX(I$22:I$33,MATCH(ROW()-ROW($Q$4),H$22:H$33,0)),\"\")","v":""},null,{"$f":"IFERROR(INDEX(K$22:K$33,MATCH(ROW()-ROW($Q$4),J$22:J$33,0)),\"\")","v":""},null,{"$f":"IFERROR(INDEX(M$22:M$33,MATCH(ROW()-ROW($Q$4),L$22:L$33,0)),\"\")","v":""},null,{"$f":"IFERROR(INDEX(O$22:O$33,MATCH(ROW()-ROW($Q$4),N$22:N$33,0)),\"\")","v":""}]
[null,{"$f":"IFERROR(INDEX(B$22:B$33,MATCH(ROW()-ROW($Q$4),A$22:A$33,0)),\"\")","v":""},null,null,{"$f":"IFERROR(INDEX(E$22:E$33,MATCH(ROW()-ROW($Q$4),D$22:D$33,0)),\"\")","v":""},null,{"$f":"IFERROR(INDEX(G$22:G$33,MATCH(ROW()-ROW($Q$4),F$22:F$33,0)),\"\")","v":""},null,"",null,"",null,"",null,""]
[null,"",null,null,"",null,"",null,"",null,"",null,"",null,""]
[null,"",null,null,"",null,"",null,"",null,"",null,"",null,""]
[null,"",null,null,"",null,"",null,"",null,"",null,"",null,""]
[null,"",null,null,"",null,"",null,"",null,"",null,"",null,""]
[null,"",null,null,"",null,"",null,"",null,"",null,"",null,""]
[null,"",null,null,"",null,"",null,"",null,"",null,"",null,""]
[null,"",null,null,"",null,"",null,"",null,"",null,"",null,""]
[null,"",null,null,"",null,"",null,"",null,"",null,"",null,""]
[null,"",null,null,"",null,"",null,"",null,"",null,"",null,""]
[null,"",null,null,"",null,"",null,"",null,"",null,"",null,""]
[null,"",null,null,"",null,"",null,"",null,"",null,"",null,""]
[null,"",null,null,"",null,"",null,"",null,"",null,"",null,""]
[null,"",null,null,"",null,"",null,"",null,"",null,"",null,""]
[null,null,null,null,"Grundläggande förutsättningar för patientsäkerhetsarbete",null,"Fokusområde 1: Öka kunskap om inträffade vårdskador",null,"Fokusområde 2: Tillförlitliga och säkra system och processer ",null,"Fokusområde 3: Säker vård här och nu",null,"Fokusområde 4: Stärka analys, lärande och utveckling",null,"Fokusområde 5: Öka riskmedvetenhet och beredskap"]
["ID","Fokusområden","Aktuell lista","ID",1,"ID",2,"ID",3,"ID",4,"ID",5,"ID",6]
[{"$f":"IF(B22=\"\",\"\",MAX(A$21:A21)+1)","v":""},{"$f":"IF(COUNTIF('2.1. Viktiga utmaningar'!G7:G13,\"=Prioritera\"),'steg 2 - data'!B39,\"\")","v":""},null,{"$f":"IF(E22=\"\",\"\",MAX(D$21:D21)+1)","v":""},{"$f":"IF('2.1. Viktiga utmaningar'!G7=\"Prioritera\",'2.1. Viktiga utmaningar'!B7,\"\")","v":""},{"$f":"IF(G22=\"\",\"\",MAX(F$21:F21)+1)","v":""},{"$f":"IF('2.1. Viktiga utmaningar'!G15=\"Prioritera\",'2.1. Viktiga utmaningar'!B15,\"\")","v":""},{"$f":"IF(I22=\"\",\"\",MAX(H$21:H21)+1)","v":""},{"$f":"IF('2.1. Viktiga utmaningar'!G18=\"Prioritera\",'2.1. Viktiga utmaningar'!B18,\"\")","v":""},{"$f":"IF(K22=\"\",\"\",MAX(J$21:J21)+1)","v":""},{"$f":"IF('2.1. Viktiga utmaningar'!G22=\"Prioritera\",'2.1. Viktiga utmaningar'!B22,\"\")","v":""},{"$f":"IF(M22=\"\",\"\",MAX(L$21:L21)+1)","v":""},{"$f":"IF('2.1. Viktiga utmaningar'!G25=\"Prioritera\",'2.1. Viktiga utmaningar'!B25,\"\")","v":""},{"$f":"IF(O22=\"\",\"\",MAX(N$21:N21)+1)","v":""},{"$f":"IF('2.1. Viktiga utmaningar'!G30=\"Prioritera\",'2.1. Viktiga utmaningar'!B30,\"\")","v":""}]
[{"$f":"IF(B23=\"\",\"\",MAX(A$21:A22)+1)","v":""},{"$f":"IF(COUNTIF('2.1. Viktiga utmaningar'!G15:G16,\"=Prioritera\"),'steg 2 - data'!B40,\"\")","v":""},null,{"$f":"IF(E23=\"\",\"\",MAX(D$21:D22)+1)","v":""},{"$f":"IF('2.1. Viktiga utmaningar'!G8=\"Prioritera\",'2.1. Viktiga utmaningar'!B8,\"\")","v":""},{"$f":"IF(G23=\"\",\"\",MAX(F$21:F22)+1)","v":""},{"$f":"IF('2.1. Viktiga utmaningar'!G16=\"Prioritera\",'2.1. Viktiga utmaningar'!B16,\"\")","v":""},{"$f":"IF(I23=\"\",\"\",MAX(H$21:H22)+1)","v":""},{"$f":"IF('2.1. Viktiga utmaningar'!G19=\"Prioritera\",'2.1. Viktiga utmaningar'!B19,\"\")","v":""},{"$f":"IF(K23=\"\",\"\",MAX(J$21:J22)+1)","v":""},{"$f":"IF('2.1. Viktiga utmaningar'!G23=\"Prioritera\",'2.1. Viktiga utmaningar'!B23,\"\")","v":""},{"$f":"IF(M23=\"\",\"\",MAX(L$21:L22)+1)","v":""},{"$f":"IF('2.1. Viktiga utmaningar'!G26=\"Prioritera\",'2.1. Viktiga utmaningar'!B26,\"\")","v":""},{"$f":"IF(O23=\"\",\"\",MAX(N$21:N22)+1)","v":""},{"$f":"IF('2.1. Viktiga utmaningar'!G31=\"Prioritera\",'2.1. Viktiga utmaningar'!B31,\"\")","v":""}]
[{"$f":"IF(B24=\"\",\"\",MAX(A$21:A23)+1)","v":""},{"$f":"IF(COUNTIF('2.1. Viktiga utmaningar'!G18:G20,\"=Prioritera\"),'steg 2 - data'!B41,\"\")","v":""},null,{"$f":"IF(E24=\"\",\"\",MAX(D$21:D23)+1)","v":""},{"$f":"IF('2.1. Viktiga utmaningar'!G9=\"Prioritera\",'2.1. Viktiga utmaningar'!B9,\"\")","v":""},{"$f":"IF(G24=\"\",\"\",MAX(F$21:F23)+1)","v":""},null,{"$f":"IF(I24=\"\",\"\",MAX(H$21:H23)+1)","v":""},{"$f":"IF('2.1. Viktiga utmaningar'!G20=\"Prioritera\",'2.1. Viktiga utmaningar'!B20,\"\")","v":""},{"$f":"IF(K24=\"\",\"\",MAX(J$21:J23)+1)","v":""},null,{"$f":"IF(M24=\"\",\"\",MAX(L$21:L23)+1)","v":""},{"$f":"IF('2.1. Viktiga utmaningar'!G27=\"Prioritera\",'2.1. Viktiga utmaningar'!B27,\"\")","v":""},{"$f":"IF(O24=\"\",\"\",MAX(N$21:N23)+1)","v":""},{"$f":"IF('2.1. Viktiga utmaningar'!G32=\"Prioritera\",'2.1. Viktiga utmaningar'!B32,\"\")","v":""}]
[{"$f":"IF(B25=\"\",\"\",MAX(A$21:A24)+1)","v":""},{"$f":"IF(COUNTIF('2.1. Viktiga utmaningar'!G22:G23,\"=Prioritera\"),'steg 2 - data'!B42,\"\")","v":""},null,{"$f":"IF(E25=\"\",\"\",MAX(D$21:D24)+1)","v":""},{"$f":"IF('2.1. Viktiga utmaningar'!G10=\"Prioritera\",'2.1. Viktiga utmaningar'!B10,\"\")","v":""},{"$f":"IF(G25=\"\",\"\",MAX(F$21:F24)+1)","v":""},null,{"$f":"IF(I25=\"\",\"\",MAX(H$21:H24)+1)","v":""},null,{"$f":"IF(K25=\"\",\"\",MAX(J$21:J24)+1)","v":""},null,{"$f":"IF(M25=\"\",\"\",MAX(L$21:L24)+1)","v":""},{"$f":"IF('2.1. Viktiga utmaningar'!G28=\"Prioritera\",'2.1. Viktiga utmaningar'!B28,\"\")","v":""},{"$f":"IF(O25=\"\",\"\",MAX(N$21:N24)+1)","v":""},{"$f":"IF('2.1. Viktiga utmaningar'!G33=\"Prioritera\",'2.1. Viktiga utmaningar'!B33,\"\")","v":""}]
[{"$f":"IF(B26=\"\",\"\",MAX(A$21:A25)+1)","v":""},{"$f":"IF(COUNTIF('2.1. Viktiga utmaningar'!G25:G28,\"=Prioritera\"),'steg 2 - data'!B43,\"\")","v":""},null,{"$f":"IF(E26=\"\",\"\",MAX(D$21:D25)+1)","v":""},{"$f":"IF('2.1. Viktiga utmaningar'!G11=\"Prioritera\",'2.1. Viktiga utmaningar'!B11,\"\")","v":""},{"$f":"IF(G26=\"\",\"\",MAX(F$21:F25)+1)","v":""},null,{"$f":"IF(I26=\"\",\"\",MAX(H$21:H25)+1)","v":""},null,{"$f":"IF(K26=\"\",\"\",MAX(J$21:J25)+1)","v":""},null,{"$f":"IF(M26=\"\",\"\",MAX(L$21:L25)+1)","v":""},null,{"$f":"IF(O26=\"\",\"\",MAX(N$21:N25)+1)","v":""}]
[{"$f":"IF(B27=\"\",\"\",MAX(A$21:A26)+1)","v":""},{"$f":"IF(COUNTIF('2.1. Viktiga utmaningar'!G30:G33,\"=Prioritera\"),'steg 2 - data'!B44,\"\")","v":""},null,{"$f":"IF(E27=\"\",\"\",MAX(D$21:D26)+1)","v":""},{"$f":"IF('2.1. Viktiga utmaningar'!G12=\"Prioritera\",'2.1. Viktiga utmaningar'!B12,\"\")","v":""},{"$f":"IF(G27=\"\",\"\",MAX(F$21:F26)+1)","v":""},null,{"$f":"IF(I27=\"\",\"\",MAX(H$21:H26)+1)","v":""},null,{"$f":"IF(K27=\"\",\"\",MAX(J$21:J26)+1)","v":""},null,{"$f":"IF(M27=\"\",\"\",MAX(L$21:L26)+1)","v":""},null,{"$f":"IF(O27=\"\",\"\",MAX(N$21:N26)+1)","v":""}]
[{"$f":"IF(B28=\"\",\"\",MAX(A$21:A27)+1)","v":""},null,null,{"$f":"IF(E28=\"\",\"\",MAX(D$21:D27)+1)","v":""},{"$f":"IF('2.1. Viktiga utmaningar'!G13=\"Prioritera\",'2.1. Viktiga utmaningar'!B13,\"\")","v":""},{"$f":"IF(G28=\"\",\"\",MAX(F$21:F27)+1)","v":""},null,{"$f":"IF(I28=\"\",\"\",MAX(H$21:H27)+1)","v":""},null,{"$f":"IF(K28=\"\",\"\",MAX(J$21:J27)+1)","v":""},null,{"$f":"IF(M28=\"\",\"\",MAX(L$21:L27)+1)","v":""},null,{"$f":"IF(O28=\"\",\"\",MAX(N$21:N27)+1)","v":""}]
[{"$f":"IF(B29=\"\",\"\",MAX(A$21:A28)+1)","v":""},null,null,{"$f":"IF(E29=\"\",\"\",MAX(D$21:D28)+1)","v":""},null,{"$f":"IF(G29=\"\",\"\",MAX(F$21:F28)+1)","v":""},null,{"$f":"IF(I29=\"\",\"\",MAX(H$21:H28)+1)","v":""},null,{"$f":"IF(K29=\"\",\"\",MAX(J$21:J28)+1)","v":""},null,{"$f":"IF(M29=\"\",\"\",MAX(L$21:L28)+1)","v":""},null,{"$f":"IF(O29=\"\",\"\",MAX(N$21:N28)+1)","v":""}]
[{"$f":"IF(B30=\"\",\"\",MAX(A$21:A29)+1)","v":""},null,null,{"$f":"IF(E30=\"\",\"\",MAX(D$21:D29)+1)","v":""},null,{"$f":"IF(G30=\"\",\"\",MAX(F$21:F29)+1)","v":""},null,{"$f":"IF(I30=\"\",\"\",MAX(H$21:H29)+1)","v":""},null,{"$f":"IF(K30=\"\",\"\",MAX(J$21:J29)+1)","v":""},null,{"$f":"IF(M30=\"\",\"\",MAX(L$21:L29)+1)","v":""},null,{"$f":"IF(O30=\"\",\"\",MAX(N$21:N29)+1)","v":""}]
[{"$f":"IF(B31=\"\",\"\",MAX(A$21:A30)+1)","v":""},null,null,{"$f":"IF(E31=\"\",\"\",MAX(D$21:D30)+1)","v":""},null,{"$f":"IF(G31=\"\",\"\",MAX(F$21:F30)+1)","v":""},null,{"$f":"IF(I31=\"\",\"\",MAX(H$21:H30)+1)","v":""},null,{"$f":"IF(K31=\"\",\"\",MAX(J$21:J30)+1)","v":""},null,{"$f":"IF(M31=\"\",\"\",MAX(L$21:L30)+1)","v":""},null,{"$f":"IF(O31=\"\",\"\",MAX(N$21:N30)+1)","v":""}]
[{"$f":"IF(B32=\"\",\"\",MAX(A$21:A31)+1)","v":""},null,null,{"$f":"IF(E32=\"\",\"\",MAX(D$21:D31)+1)","v":""},null,{"$f":"IF(G32=\"\",\"\",MAX(F$21:F31)+1)","v":""},null,{"$f":"IF(I32=\"\",\"\",MAX(H$21:H31)+1)","v":""},null,{"$f":"IF(K32=\"\",\"\",MAX(J$21:J31)+1)","v":""},null,{"$f":"IF(M32=\"\",\"\",MAX(L$21:L31)+1)","v":""},null,{"$f":"IF(O32=\"\",\"\",MAX(N$21:N31)+1)","v":""}]
[{"$f":"IF(B33=\"\",\"\",MAX(A$21:A32)+1)","v":""},null,null,{"$f":"IF(E33=\"\",\"\",MAX(D$21:D32)+1)","v":""},null,{"$f":"IF(G33=\"\",\"\",MAX(F$21:F32)+1)","v":""},null,{"$f":"IF(I33=\"\",\"\",MAX(H$21:H32)+1)","v":""},null,{"$f":"IF(K33=\"\",\"\",MAX(J$21:J32)+1)","v":""},null,{"$f":"IF(M33=\"\",\"\",MAX(L$21:L32)+1)","v":""},null,{"$f":"IF(O33=\"\",\"\",MAX(N$21:N32)+1)","v":""}]
[{"$f":"IF(B34=\"\",\"\",MAX(A$21:A33)+1)","v":""},null,null,{"$f":"IF(E34=\"\",\"\",MAX(D$21:D33)+1)","v":""},null,{"$f":"IF(G34=\"\",\"\",MAX(F$21:F33)+1)","v":""},null,{"$f":"IF(I34=\"\",\"\",MAX(H$21:H33)+1)","v":""},null,{"$f":"IF(K34=\"\",\"\",MAX(J$21:J33)+1)","v":""},null,{"$f":"IF(M34=\"\",\"\",MAX(L$21:L33)+1)","v":""},null,{"$f":"IF(O34=\"\",\"\",MAX(N$21:N33)+1)","v":""}]
[{"$f":"IF(B35=\"\",\"\",MAX(A$21:A34)+1)","v":""},null,null,{"$f":"IF(E35=\"\",\"\",MAX(D$21:D34)+1)","v":""},null,{"$f":"IF(G35=\"\",\"\",MAX(F$21:F34)+1)","v":""},null,{"$f":"IF(I35=\"\",\"\",MAX(H$21:H34)+1)","v":""},null,{"$f":"IF(K35=\"\",\"\",MAX(J$21:J34)+1)","v":""},null,{"$f":"IF(M35=\"\",\"\",MAX(L$21:L34)+1)","v":""},null,{"$f":"IF(O35=\"\",\"\",MAX(N$21:N34)+1)","v":""}]
[]
[null,null,null,null,"Grundläggande förutsättningar för patientsäkerhetsarbete",null,"Fokusområde 1: Öka kunskap om inträffade vårdskador",null,"Fokusområde 2: Tillförlitliga och säkra system och processer ",null,"Fokusområde 3: Säker vård här och nu",null,"Fokusområde 4: Stärka analys, lärande och utveckling",null,"Fokusområde 5: Öka riskmedvetenhet och beredskap"]
[null,"Fokusområden","Aktuell lista",null,1,null,2,null,3,null,4,null,5,null,6]
[null,"Grundläggande förutsättningar för patientsäkerhetsarbete"]
[null,"Fokusområde 1: Öka kunskap om inträffade vårdskador"]
[null,"Fokusområde 2: Tillförlitliga och säkra system och processer "]
[null,"Fokusområde 3: Säker vård här och nu"]
[null,"Fokusområde 4: Stärka analys, lärande och utveckling"]
[null,"Fokusområde 5: Öka riskmedvetenhet och beredskap"]

{"sheet":"clear2","index":7,"n_rows":62,"n_cols":9,"rows_kept":62,"cut":false,"hidden":true,"merged":[[1,1,1,3],[2,1,2,3]]}
[]
[null,{"$f":"\"Handlingsalternativ, \"&'1.1. Nulägesanalys'!B3:E3&\"\"","v":"Handlingsalternativ, Välj NPO från listan"}]
[null,{"$f":"\"\"&'1.1. Nulägesanalys'!B5:E5&\"\"","v":""}]
[]
[null,"Välj område","Välj tema","Beskriv insatser för att möta de identifierade utmaningarna","Beskriv vilken/vilka aktörer som bör agera","Om annan aktör än NPO, vilka kontakter bör NPO ta?","Uppskattad resursåtgång","Förväntad effekt","Prio-värde"]
[null,null,null,null,null,null,null,null,{"$f":"IFERROR(IF(G6=\"Annan aktör bedömer\",0,VLOOKUP(G6,Variabler!$C$33:$D$36,2,FALSE)+VLOOKUP(H6,Variabler!$E$32:$F$36,2,FALSE)),\"\")","v":""}]
[null,null,null,null,null,null,null,null,{"$f":"IFERROR(IF(G7=\"Annan aktör bedömer\",0,VLOOKUP(G7,Variabler!$C$33:$D$36,2,FALSE)+VLOOKUP(H7,Variabler!$E$32:$F$36,2,FALSE)),\"\")","v":""}]
[null,null,null,null,null,null,null,null,{"$f":"IFERROR(IF(G8=\"Annan aktör bedömer\",0,VLOOKUP(G8,Variabler!$C$33:$D$36,2,FALSE)+VLOOKUP(H8,Variabler!$E$32:$F$36,2,FALSE)),\"\")","v":""}]
[null,null,null,null,null,null,null,null,{"$f":"IFERROR(IF(G9=\"Annan aktör bedömer\",0,VLOOKUP(G9,Variabler!$C$33:$D$36,2,FALSE)+VLOOKUP(H9,Variabler!$E$32:$F$36,2,FALSE)),\"\")","v":""}]
[null,null,null,null,null,null,null,null,{"$f":"IFERROR(IF(G10=\"Annan aktör bedömer\",0,VLOOKUP(G10,Variabler!$C$33:$D$36,2,FALSE)+VLOOKUP(H10,Variabler!$E$32:$F$36,2,FALSE)),\"\")","v":""}]
[null,null,null,null,null,null,null,null,{"$f":"IFERROR(IF(G11=\"Annan aktör bedömer\",0,VLOOKUP(G11,Variabler!$C$33:$D$36,2,FALSE)+VLOOKUP(H11,Variabler!$E$32:$F$36,2,FALSE)),\"\")","v":""}]
[null,null,null,null,null,null,null,null,{"$f":"IFERROR(IF(G12=\"Annan aktör bedömer\",0,VLOOKUP(G12,Variabler!$C$33:$D$36,2,FALSE)+VLOOKUP(H12,Variabler!$E$32:$F$36,2,FALSE)),\"\")","v":""}]
[null,null,null,null,null,null,null,null,{"$f":"IFERROR(IF(G13=\"Annan aktör bedömer\",0,VLOOKUP(G13,Variabler!$C$33:$D$36,2,FALSE)+VLOOKUP(H13,Variabler!$E$32:$F$36,2,FALSE)),\"\")","v":""}]
[null,null,null,null,null,null,null,null,{"$f":"IFERROR(IF(G14=\"Annan aktör bedömer\",0,VLOOKUP(G14,Variabler!$C$33:$D$36,2,FALSE)+VLOOKUP(H14,Variabler!$E$32:$F$36,2,FALSE)),\"\")","v":""}]
[null,null,null,null,null,null,null,null,{"$f":"IFERROR(IF(G15=\"Annan aktör bedömer\",0,VLOOKUP(G15,Variabler!$C$33:$D$36,2,FALSE)+VLOOKUP(H15,Variabler!$E$32:$F$36,2,FALSE)),\"\")","v":""}]
[null,null,null,null,null,null,null,null,{"$f":"IFERROR(IF(G16=\"Annan aktör bedömer\",0,VLOOKUP(G16,Variabler!$C$33:$D$36,2,FALSE)+VLOOKUP(H16,Variabler!$E$32:$F$36,2,FALSE)),\"\")","v":""}]
[null,null,null,null,null,null,null,null,{"$f":"IFERROR(IF(G17=\"Annan aktör bedömer\",0,VLOOKUP(G17,Variabler!$C$33:$D$36,2,FALSE)+VLOOKUP(H17,Variabler!$E$32:$F$36,2,FALSE)),\"\")","v":""}]
[null,null,null,null,null,null,null,null,{"$f":"IFERROR(IF(G18=\"Annan aktör bedömer\",0,VLOOKUP(G18,Variabler!$C$33:$D$36,2,FALSE)+VLOOKUP(H18,Variabler!$E$32:$F$36,2,FALSE)),\"\")","v":""}]
[null,null,null,null,null,null,null,null,{"$f":"IFERROR(IF(G19=\"Annan aktör bedömer\",0,VLOOKUP(G19,Variabler!$C$33:$D$36,2,FALSE)+VLOOKUP(H19,Variabler!$E$32:$F$36,2,FALSE)),\"\")","v":""}]
[null,null,null,null,null,null,null,null,{"$f":"IFERROR(IF(G20=\"Annan aktör bedömer\",0,VLOOKUP(G20,Variabler!$C$33:$D$36,2,FALSE)+VLOOKUP(H20,Variabler!$E$32:$F$36,2,FALSE)),\"\")","v":""}]
[null,null,null,null,null,null,null,null,{"$f":"IFERROR(IF(G21=\"Annan aktör bedömer\",0,VLOOKUP(G21,Variabler!$C$33:$D$36,2,FALSE)+VLOOKUP(H21,Variabler!$E$32:$F$36,2,FALSE)),\"\")","v":""}]
[null,null,null,null,null,null,null,null,{"$f":"IFERROR(IF(G22=\"Annan aktör bedömer\",0,VLOOKUP(G22,Variabler!$C$33:$D$36,2,FALSE)+VLOOKUP(H22,Variabler!$E$32:$F$36,2,FALSE)),\"\")","v":""}]
[null,null,null,null,null,null,null,null,{"$f":"IFERROR(IF(G23=\"Annan aktör bedömer\",0,VLOOKUP(G23,Variabler!$C$33:$D$36,2,FALSE)+VLOOKUP(H23,Variabler!$E$32:$F$36,2,FALSE)),\"\")","v":""}]
[null,null,null,null,null,null,null,null,{"$f":"IFERROR(IF(G24=\"Annan aktör bedömer\",0,VLOOKUP(G24,Variabler!$C$33:$D$36,2,FALSE)+VLOOKUP(H24,Variabler!$E$32:$F$36,2,FALSE)),\"\")","v":""}]
[null,null,null,null,null,null,null,null,{"$f":"IFERROR(IF(G25=\"Annan aktör bedömer\",0,VLOOKUP(G25,Variabler!$C$33:$D$36,2,FALSE)+VLOOKUP(H25,Variabler!$E$32:$F$36,2,FALSE)),\"\")","v":""}]
[null,null,null,null,null,null,null,null,{"$f":"IFERROR(IF(G26=\"Annan aktör bedömer\",0,VLOOKUP(G26,Variabler!$C$33:$D$36,2,FALSE)+VLOOKUP(H26,Variabler!$E$32:$F$36,2,FALSE)),\"\")","v":""}]
[null,null,null,null,null,null,null,null,{"$f":"IFERROR(IF(G27=\"Annan aktör bedömer\",0,VLOOKUP(G27,Variabler!$C$33:$D$36,2,FALSE)+VLOOKUP(H27,Variabler!$E$32:$F$36,2,FALSE)),\"\")","v":""}]
[null,null,null,null,null,null,null,null,{"$f":"IFERROR(IF(G28=\"Annan aktör bedömer\",0,VLOOKUP(G28,Variabler!$C$33:$D$36,2,FALSE)+VLOOKUP(H28,Variabler!$E$32:$F$36,2,FALSE)),\"\")","v":""}]
[null,null,null,null,null,null,null,null,{"$f":"IFERROR(IF(G29=\"Annan aktör bedömer\",0,VLOOKUP(G29,Variabler!$C$33:$D$36,2,FALSE)+VLOOKUP(H29,Variabler!$E$32:$F$36,2,FALSE)),\"\")","v":""}]
[null,null,null,null,null,null,null,null,{"$f":"IFERROR(IF(G30=\"Annan aktör bedömer\",0,VLOOKUP(G30,Variabler!$C$33:$D$36,2,FALSE)+VLOOKUP(H30,Variabler!$E$32:$F$36,2,FALSE)),\"\")","v":""}]
[null,null,null,null,null,null,null,null,{"$f":"IFERROR(IF(G31=\"Annan aktör bedömer\",0,VLOOKUP(G31,Variabler!$C$33:$D$36,2,FALSE)+VLOOKUP(H31,Variabler!$E$32:$F$36,2,FALSE)),\"\")","v":""}]
[null,null,null,null,null,null,null,null,{"$f":"IFERROR(IF(G32=\"Annan aktör bedömer\",0,VLOOKUP(G32,Variabler!$C$33:$D$36,2,FALSE)+VLOOKUP(H32,Variabler!$E$32:$F$36,2,FALSE)),\"\")","v":""}]
[null,null,null,null,null,null,null,null,{"$f":"IFERROR(IF(G33=\"Annan aktör bedömer\",0,VLOOKUP(G33,Variabler!$C$33:$D$36,2,FALSE)+VLOOKUP(H33,Variabler!$E$32:$F$36,2,FALSE)),\"\")","v":""}]
[null,null,null,null,null,null,null,null,{"$f":"IFERROR(IF(G34=\"Annan aktör bedömer\",0,VLOOKUP(G34,Variabler!$C$33:$D$36,2,FALSE)+VLOOKUP(H34,Variabler!$E$32:$F$36,2,FALSE)),\"\")","v":""}]
[null,null,null,null,null,null,null,null,{"$f":"IFERROR(IF(G35=\"Annan aktör bedömer\",0,VLOOKUP(G35,Variabler!$C$33:$D$36,2,FALSE)+VLOOKUP(H35,Variabler!$E$32:$F$36,2,FALSE)),\"\")","v":""}]
[null,null,null,null,null,null,null,null,{"$f":"IFERROR(IF(G36=\"Annan aktör bedömer\",0,VLOOKUP(G36,Variabler!$C$33:$D$36,2,FALSE)+VLOOKUP(H36,Variabler!$E$32:$F$36,2,FALSE)),\"\")","v":""}]
[null,null,null,null,null,null,null,null,{"$f":"IFERROR(IF(G37=\"Annan aktör bedömer\",0,VLOOKUP(G37,Variabler!$C$33:$D$36,2,FALSE)+VLOOKUP(H37,Variabler!$E$32:$F$36,2,FALSE)),\"\")","v":""}]
[null,null,null,null,null,null,null,null,{"$f":"IFERROR(IF(G38=\"Annan aktör bedömer\",0,VLOOKUP(G38,Variabler!$C$33:$D$36,2,FALSE)+VLOOKUP(H38,Variabler!$E$32:$F$36,2,FALSE)),\"\")","v":""}]
[null,null,null,null,null,null,null,null,{"$f":"IFERROR(IF(G39=\"Annan aktör bedömer\",0,VLOOKUP(G39,Variabler!$C$33:$D$36,2,FALSE)+VLOOKUP(H39,Variabler!$E$32:$F$36,2,FALSE)),\"\")","v":""}]
[null,null,null,null,null,null,null,null,{"$f":"IFERROR(IF(G40=\"Annan aktör bedömer\",0,VLOOKUP(G40,Variabler!$C$33:$D$36,2,FALSE)+VLOOKUP(H40,Variabler!$E$32:$F$36,2,FALSE)),\"\")","v":""}]
[null,null,null,null,null,null,null,null,{"$f":"IFERROR(IF(G41=\"Annan aktör bedömer\",0,VLOOKUP(G41,Variabler!$C$33:$D$36,2,FALSE)+VLOOKUP(H41,Variabler!$E$32:$F$36,2,FALSE)),\"\")","v":""}]
[null,null,null,null,null,null,null,null,{"$f":"IFERROR(IF(G42=\"Annan aktör bedömer\",0,VLOOKUP(G42,Variabler!$C$33:$D$36,2,FALSE)+VLOOKUP(H42,Variabler!$E$32:$F$36,2,FALSE)),\"\")","v":""}]
[null,null,null,null,null,null,null,null,{"$f":"IFERROR(IF(G43=\"Annan aktör bedömer\",0,VLOOKUP(G43,Variabler!$C$33:$D$36,2,FALSE)+VLOOKUP(H43,Variabler!$E$32:$F$36,2,FALSE)),\"\")","v":""}]
[null,null,null,null,null,null,null,null,{"$f":"IFERROR(IF(G44=\"Annan aktör bedömer\",0,VLOOKUP(G44,Variabler!$C$33:$D$36,2,FALSE)+VLOOKUP(H44,Variabler!$E$32:$F$36,2,FALSE)),\"\")","v":""}]
[null,null,null,null,null,null,null,null,{"$f":"IFERROR(IF(G45=\"Annan aktör bedömer\",0,VLOOKUP(G45,Variabler!$C$33:$D$36,2,FALSE)+VLOOKUP(H45,Variabler!$E$32:$F$36,2,FALSE)),\"\")","v":""}]
[null,null,null,null,null,null,null,null,{"$f":"IFERROR(IF(G46=\"Annan aktör bedömer\",0,VLOOKUP(G46,Variabler!$C$33:$D$36,2,FALSE)+VLOOKUP(H46,Variabler!$E$32:$F$36,2,FALSE)),\"\")","v":""}]
[null,null,null,null,null,null,null,null,{"$f":"IFERROR(IF(G47=\"Annan aktör bedömer\",0,VLOOKUP(G47,Variabler!$C$33:$D$36,2,FALSE)+VLOOKUP(H47,Variabler!$E$32:$F$36,2,FALSE)),\"\")","v":""}]
[null,null,null,null,null,null,null,null,{"$f":"IFERROR(IF(G48=\"Annan aktör bedömer\",0,VLOOKUP(G48,Variabler!$C$33:$D$36,2,FALSE)+VLOOKUP(H48,Variabler!$E$32:$F$36,2,FALSE)),\"\")","v":""}]
[null,null,null,null,null,null,null,null,{"$f":"IFERROR(IF(G49=\"Annan aktör bedömer\",0,VLOOKUP(G49,Variabler!$C$33:$D$36,2,FALSE)+VLOOKUP(H49,Variabler!$E$32:$F$36,2,FALSE)),\"\")","v":""}]
[null,null,null,null,null,null,null,null,{"$f":"IFERROR(IF(G50=\"Annan aktör bedömer\",0,VLOOKUP(G50,Variabler!$C$33:$D$36,2,FALSE)+VLOOKUP(H50,Variabler!$E$32:$F$36,2,FALSE)),\"\")","v":""}]
[null,null,null,null,null,null,null,null,{"$f":"IFERROR(IF(G51=\"Annan aktör bedömer\",0,VLOOKUP(G51,Variabler!$C$33:$D$36,2,FALSE)+VLOOKUP(H51,Variabler!$E$32:$F$36,2,FALSE)),\"\")","v":""}]
[null,null,null,null,null,null,null,null,{"$f":"IFERROR(IF(G52=\"Annan aktör bedömer\",0,VLOOKUP(G52,Variabler!$C$33:$D$36,2,FALSE)+VLOOKUP(H52,Variabler!$E$32:$F$36,2,FALSE)),\"\")","v":""}]
[null,null,null,null,null,null,null,null,{"$f":"IFERROR(IF(G53=\"Annan aktör bedömer\",0,VLOOKUP(G53,Variabler!$C$33:$D$36,2,FALSE)+VLOOKUP(H53,Variabler!$E$32:$F$36,2,FALSE)),\"\")","v":""}]
[null,null,null,null,null,null,null,null,{"$f":"IFERROR(IF(G54=\"Annan aktör bedömer\",0,VLOOKUP(G54,Variabler!$C$33:$D$36,2,FALSE)+VLOOKUP(H54,Variabler!$E$32:$F$36,2,FALSE)),\"\")","v":""}]
[null,null,null,null,null,null,null,null,{"$f":"IFERROR(IF(G55=\"Annan aktör bedömer\",0,VLOOKUP(G55,Variabler!$C$33:$D$36,2,FALSE)+VLOOKUP(H55,Variabler!$E$32:$F$36,2,FALSE)),\"\")","v":""}]
[null,null,null,null,null,null,null,null,{"$f":"IFERROR(IF(G56=\"Annan aktör bedömer\",0,VLOOKUP(G56,Variabler!$C$33:$D$36,2,FALSE)+VLOOKUP(H56,Variabler!$E$32:$F$36,2,FALSE)),\"\")","v":""}]
[null,null,null,null,null,null,null,null,{"$f":"IFERROR(IF(G57=\"Annan aktör bedömer\",0,VLOOKUP(G57,Variabler!$C$33:$D$36,2,FALSE)+VLOOKUP(H57,Variabler!$E$32:$F$36,2,FALSE)),\"\")","v":""}]
[null,null,null,null,null,null,null,null,{"$f":"IFERROR(IF(G58=\"Annan aktör bedömer\",0,VLOOKUP(G58,Variabler!$C$33:$D$36,2,FALSE)+VLOOKUP(H58,Variabler!$E$32:$F$36,2,FALSE)),\"\")","v":""}]
[null,null,null,null,null,null,null,null,{"$f":"IFERROR(IF(G59=\"Annan aktör bedömer\",0,VLOOKUP(G59,Variabler!$C$33:$D$36,2,FALSE)+VLOOKUP(H59,Variabler!$E$32:$F$36,2,FALSE)),\"\")","v":""}]
[null,null,null,null,null,null,null,null,{"$f":"IFERROR(IF(G60=\"Annan aktör bedömer\",0,VLOOKUP(G60,Variabler!$C$33:$D$36,2,FALSE)+VLOOKUP(H60,Variabler!$E$32:$F$36,2,FALSE)),\"\")","v":""}]
[null,null,null,null,null,null,null,null,{"$f":"IFERROR(IF(G61=\"Annan aktör bedömer\",0,VLOOKUP(G61,Variabler!$C$33:$D$36,2,FALSE)+VLOOKUP(H61,Variabler!$E$32:$F$36,2,FALSE)),\"\")","v":""}]
[null,null,null,null,null,null,null,null,{"$f":"IFERROR(IF(G62=\"Annan aktör bedömer\",0,VLOOKUP(G62,Variabler!$C$33:$D$36,2,FALSE)+VLOOKUP(H62,Variabler!$E$32:$F$36,2,FALSE)),\"\")","v":""}]

{"sheet":"Variabler","index":8,"n_rows":40,"n_cols":9,"rows_kept":40,"cut":false,"hidden":true,"merged":[[0,16,0,21],[1,16,1,21]]}
[]
[null,null,null,"Alternativ","Värde",null,null,null,"Region"]
[null,null,null,"Ja",2,null,null,null,"Välj NPO från listan"]
[null,null,null,"Ja, i huvudsak ",1,null,null,null,"NPO Akut vård"]
[null,null,null,"Till viss del",-1,null,null,null,"NPO Barn och ungdomars hälsa"]
[null,null,null,"Nej",-2,null,null,null,"NPO Cancersjukdomar"]
[null,null,null,"Tillräcklig info saknas",0,null,null,null,"NPO Endokrina sjukdomar"]
[null,null,null,null,null,null,null,null,"NPO Hjärt- och kärlsjukdomar"]
[null,null,null,null,null,null,null,null,"NPO Hud- och kärlsjukdomar"]
[null,null,null,null,null,null,null,null,"NPO Infektionssjukdomar"]
[null,null,null,null,null,null,null,null,"NPO Kvinnosjukdomar och förlossning"]
[null,null,null,"Alternativ","Värde",null,null,null,"NPO Levnadsvanor"]
[null,null,null,"Prioritera",1,null,null,null,"NPO Lung- och allergisjukdomar"]
[null,null,null,"Avvakta",0,null,null,null,"NPO Nervsystemets sjukdomar"]
[null,null,null,"Arbete pågår",0,null,null,null,"NPO Njur- och urinvägssjukdomar"]
[null,null,null,"Under kontroll",0,null,null,null,"NPO Mag- och tarmsjukdomar"]
[null,null,null,null,null,null,null,null,"NPO Medicinsk diagnostik"]
[null,null,null,null,null,null,null,null,"NPO Preoperativ vård, intensivvård och transplantation "]
[null,null,null,null,null,null,null,null,"NPO Psykisk hälsa"]
[null,null,null,null,null,null,null,null,"NPO Rehabilitering, habilitering och försäkringsmedicin"]
[null,null,null,null,null,null,null,null,"NPO Reumatiska sjukdomar"]
[null,null,null,null,null,null,null,null,"NPO Rörelseorganens sjukdomar"]
[null,null,null,null,null,null,null,null,"NPO Sällsynta sjukdomar"]
[null,null,null,null,null,null,null,null,"NPO Tandvård"]
[null,null,"Aktörer",null,null,null,null,null,"NPO Äldres hälsa"]
[null,null,"Välj aktör",null,null,null,null,null,"NPO Ögonsjukdomar"]
[null,null,"NPO",null,null,null,null,null,"NPO Öron-, näsa- och halssjukdomar"]
[null,null,"NPO i samverkan med annan aktör",null,null,null,null,null,"Annan"]
[null,null,"Annan aktör"]
[]
[null,null,null,null,"Effekt"]
[null,null,"Resursåtgång",null,"Liten",1]
[null,null,"Liten",3,"Medel",2]
[null,null,"Medel",2,"Stor",3]
[null,null,"Stor",1,"Mycket stor",4]
[null,null,"Annan aktör bedömer",0,"Annan aktör bedömer",0]
[]
[]
[]
[null,null,"Lösen för att lås upp worksheet protection: ps2020SKR"]

{"sheet":"clearnulageinmatning","index":9,"n_rows":309,"n_cols":9,"rows_kept":309,"cut":false,"hidden":true,"merged":[[11,7,26,8],[1,2,1,4],[2,1,2,4],[4,1,4,4],[6,1,6,4],[3,1,3,4],[5,1,5,4],[13,2,13,4]]}
[]
[null," ","Kort instruktion: I denna flik genomför ni er nulägesanalys. Ange först bakgrundsinformation. Tryck på cellen nedan för att välja inom vilket NPO analysen utförs. I fälten under fyller ni i vilka aktörer/personer som deltagit i genomförandet samt vilka delar av NPO som omfattas av svaren i nulägesanalysen (exempelvis hela NPO, ett RPO eller en NAG). I del 1 av genomförandestödet finns exempel på hur det går att organisera arbetet med verktyget."]
[null,"Välj NPO från listan"]
[null,"Nulägesanalys genomförd av:"]
[null,null,null,null,null,null,null,"A-C-frågor besvarade",{"$f":"COUNTIF($D$81:$D$1048576,\">\"\"\")","v":0}]
[null,"Nulägesanalysen avser:"]
[null,null,null,null,null,null,null,"A-C-frågor som återstår att besvara",{"$f":"99-I5","v":99}]
[]
[null,null,"Grundläggande förutsättningar för patientsäkerhetsarbete"]
[]
[]
[null,"0.1","Engagerad ledning och styrning"]
[]
[null,null,"En engagerad ledning och tydlig styrning är avgörande för en säker vård, på alla nivåer och en viktig aspekt i huvudmännens arbete för en säker vård. Det är en av fyra grundläggande förutsättningar för en säker vård som finns i den nationella handlingsplanen för ökad patientsäkerhet i hälso- och sjukvården 2020-2024. Detta är dock inte ett eget tema i verktyget som tagits fram för användning inom NPO. "]
[]
[]
[]
[null,"0.2","En god säkerhetskultur","Svar","Besvarad"]
[]
[null,"A","Finns kunskap om moment och processer inom programområdet som medför risk där det är särskilt viktigt med en god säkerhetskultur?",null,{"$f":"IF(D20>\"\",\"þ\",\"o\")","v":"o"}]
[]
[null,"B","Finns kunskapsstöd för säkerhetskulturarbete lämpligt för/anpassat utifrån programområdets förutsättningar och behov?",null,{"$f":"IF(D22>\"\",\"þ\",\"o\")","v":"o"}]
[]
[null,"C","Finns en kultur som stärker patientsäkerheten vid team-arbete  samt specifika moment och processer inom programområdet som kan medföra risk?",null,{"$f":"IF(D24>\"\",\"þ\",\"o\")","v":"o"}]
[]
[null,"D","Beskriv kortfattat utmaningarna/var det saknas information om nuläget:"]
[]
[]
[]
[]
[null,"0.3","Adekvat kunskap och kompetens"]
[]
[null,"A","Finns kunskap om vad chefer och medarbetare behöver veta och kunna för att arbeta patientsäkert inom programområdet? Ex. för att kunna utveckla patientsäkra processer samt analysera och agera på omständigheter som påverkar patientsäkerheten. ",null,{"$f":"IF(D33>\"\",\"þ\",\"o\")","v":"o"}]
[]
[null,"B","Finns utbildningar och andra typer av stöd riktade till chefer och medarbetare för att bidra till adekvat kunskap och kompetens?",null,{"$f":"IF(D35>\"\",\"þ\",\"o\")","v":"o"}]
[]
[null,"C","Utbildas chefer och medarbetare för att upprätthålla adekvat kunskap och kompetens och säkerställs en adekvat kunskapsnivå?",null,{"$f":"IF(D37>\"\",\"þ\",\"o\")","v":"o"}]
[]
[null,"D","Beskriv kortfattat utmaningarna/var det saknas information om nuläget:"]
[]
[]
[]
[]
[null,"0.4","Patienten som medskapare"]
[]
[null,"A","Finns kunskap om varför patientmedverkan i vård och utvecklingsarbete är viktigt och hur patienter och närstående ska göras delaktiga?",null,{"$f":"IF(D46>\"\",\"þ\",\"o\")","v":"o"}]
[]
[null,"B","Finns kunskapsstöd för att göra patienter och närstående delaktiga i vård och utvecklingsarbete inom programområdet?",null,{"$f":"IF(D48>\"\",\"þ\",\"o\")","v":"o"}]
[]
[null,"C","Görs patienter och närstående till aktiva medskapare i den egna vården och i utvecklingsarbete i tillräckligt stor utsträckning?",null,{"$f":"IF(D50>\"\",\"þ\",\"o\")","v":"o"}]
[]
[null,"D","Beskriv kortfattat utmaningarna/var det saknas information om nuläget:"]
[]
[]
[]
[]
[null,"FO1","Patienter och närståendes erfarenheter av vårdskador"]
[]
[null,"A","Finns kunskap om hur patienter och närståendes upplevelser av vårdskador ska tillvaratas inom programområdet?",null,{"$f":"IF(D59>\"\",\"þ\",\"o\")","v":"o"}]
[]
[null,"B","Finns detta beskrivet i kunskapsstöd riktade till berörda aktörer inom hälso- och sjukvården, inklusive patienter? ",null,{"$f":"IF(D61>\"\",\"þ\",\"o\")","v":"o"}]
[]
[null,"C","Efterfrågas och sammanställs upplevelserna?",null,{"$f":"IF(D63>\"\",\"þ\",\"o\")","v":"o"}]
[]
[null,"D","Beskriv kortfattat utmaningarna/var det saknas information om nuläget:"]
[]
[]
[]
[]
[null,"FO2","Patientmedverkan i utveckling av processer och arbetssätt"]
[]
[null,"A","Finns kunskap om hur patienter och närstående bör involveras i utvärdering och utveckling av processer och arbetssätt?",null,{"$f":"IF(D72>\"\",\"þ\",\"o\")","v":"o"}]
[]
[null,"B","Finns detta beskrivet i kunskapsstöd?",null,{"$f":"IF(D74>\"\",\"þ\",\"o\")","v":"o"}]
[]
[null,"C","Involveras patienter i utveckling av processer och arbetssätt?",null,{"$f":"IF(D76>\"\",\"þ\",\"o\")","v":"o"}]
[]
[null,"D","Beskriv kortfattat utmaningarna/var det saknas information om nuläget:"]
[]
[]
[]
[]
[null,"FO3","Patientens delaktighet i den egna vården"]
[]
[null,"A","Finns kunskap om vilka aspekter och förutsättningar som behöver beaktas för att patienter ska kunna involveras som medskapare i att göra vården säkrare? Kan vara relevant exempelvis för barn, äldre, patienter med kognitiva funktionsnedsättningar, språksvårigheter m.m. och bero på typ av vårdinsatser (inneliggande jmf. med öppenvård, hög jmf. med låg grad av egenvård osv.).  ",null,{"$f":"IF(D85>\"\",\"þ\",\"o\")","v":"o"}]
[]
[null,"B","Finns detta beskrivet i kunskapsstöd?",null,{"$f":"IF(D87>\"\",\"þ\",\"o\")","v":"o"}]
[]
[null,"C","Finns en patientdelaktighet som främjar patientsäkerhet i det dagliga arbetet?",null,{"$f":"IF(D89>\"\",\"þ\",\"o\")","v":"o"}]
[]
[null,"D","Beskriv kortfattat utmaningarna/var det saknas information om nuläget:"]
[]
[]
[]
[]
[null,"FO5","Patientmedverkan för ökad riskmedvetenhet och beredskap"]
[]
[null,"A","Finns kunskap om hur patienter och närstående kan involveras i arbetet för en ökad riskmedvetenhet och beredskap?",null,{"$f":"IF(D98>\"\",\"þ\",\"o\")","v":"o"}]
[]
[null,"B","Beskrivs detta i stöd till berörda aktörer?",null,{"$f":"IF(D100>\"\",\"þ\",\"o\")","v":"o"}]
[]
[null,"C","Medverkar patienter i den långsiktiga planeringen?",null,{"$f":"IF(D102>\"\",\"þ\",\"o\")","v":"o"}]
[]
[null,"D","Beskriv kortfattat utmaningarna/var det saknas information om nuläget:"]
[]
[]
[]
[null,1,"Fokusområde 1: Öka kunskap om inträffade vårdskador"]
[]
[]
[null,"1.1","Identifiering, sammanställning och aggregering av information om vårdskador"]
[]
[null,"A","Finns det kunskap om vilka de vanligaste och allvarligaste vårdskadorna är inom programområdet?",null,{"$f":"IF(D113>\"\",\"þ\",\"o\")","v":"o"}]
[]
[null,"B","Beskriver kunskapsstöd hur identifiering, mätning och sammanställning av vårdskador kan genomföras?",null,{"$f":"IF(D115>\"\",\"þ\",\"o\")","v":"o"}]
[]
[null,"C","Används metoder för identifiering, mätning och sammanställning? Är täckningsgraden tillfredsställande?",null,{"$f":"IF(D117>\"\",\"þ\",\"o\")","v":"o"}]
[]
[null,"D","Beskriv kortfattat utmaningarna/var det saknas information om nuläget:"]
[]
[]
[]
[]
[null,"1.2","Minimering av effekter av negativa händelser"]
[]
[null,"A","Finns kunskap om hur effekter av negativa händelser som har medfört skada minimeras, inklusive hur patienter, närstående och personal kan stödjas?",null,{"$f":"IF(D126>\"\",\"þ\",\"o\")","v":"o"}]
[]
[null,"B","Finns kunskapsstöd till berörda aktörer för att stödja involverade vid negativa händelser?",null,{"$f":"IF(D128>\"\",\"þ\",\"o\")","v":"o"}]
[]
[null,"C","Tillämpas bästa tillgängliga kunskap för att minimera negativa följdeffekter?",null,{"$f":"IF(D130>\"\",\"þ\",\"o\")","v":"o"}]
[]
[null,"D","Beskriv kortfattat utmaningarna/var det saknas information om nuläget:"]
[]
[]
[]
[null,2,"Fokusområde 2: Tillförlitliga och säkra system och processer "]
[]
[]
[null,"2.1","Tillförlitliga och säkra vårdprocesser och rutiner som omfattar patientens väg i hälso- och sjukvården"]
[]
[null,"A","Finns kunskap om vad som är säkra processer och rutiner, som omfattar hela patientens väg i vården och som reducerar specifika riskmoment, inom programområdet?",null,{"$f":"IF(D141>\"\",\"þ\",\"o\")","v":"o"}]
[]
[null,"B","Beskrivs dessa, inklusive riskmoment, i kunskapsstöd som främjar användande av bästa tillgängliga kunskap?",null,{"$f":"IF(D143>\"\",\"þ\",\"o\")","v":"o"}]
[]
[null,"C","Finns en god följsamhet till säkra processer och rutiner?",null,"o"]
[]
[null,"D","Beskriv kortfattat utmaningarna/var det saknas information om nuläget:"]
[]
[]
[]
[]
[null,"2.2","Kunskapsbaserade verktyg, metoder och arbetssätt för ett patientsäkert arbete"]
[]
[null,"A","Finns kunskap om verktyg, metoder och arbetssätt som bidrar till en säkrare vård i samband med specifika kliniska processer inom programområdet, såsom överrapportering, bedömning av status eller behandling, t.ex. skattningsverktyg, verktyg för strukturerad kommunikation eller checklistor vid kirurgi?",null,{"$f":"IF(D154>\"\",\"þ\",\"o\")","v":"o"}]
[]
[null,"B","Finns för kunskapsområdet lämpliga/anpassade stöd för att vägleda och främja användning av dessa verktyg, metoder och arbetssätt?",null,{"$f":"IF(D156>\"\",\"þ\",\"o\")","v":"o"}]
[]
[null,"C","Tillämpas relevanta verktyg, metoder och arbetssätt?",null,{"$f":"IF(D158>\"\",\"þ\",\"o\")","v":"o"}]
[]
[null,"D","Beskriv kortfattat utmaningarna/var det saknas information om nuläget:"]
[]
[]
[]
[]
[null,"2.3","Medicinteknik, medicintekniska produkter, hjälpmedel och välfärdsteknik"]
[]
[null,"A","Finns kunskap om vad som utgör patientsäker medicinteknik, medicintekniska produkter, hjälpmedel och välfärdsteknik inom programområdet?",null,{"$f":"IF(D167>\"\",\"þ\",\"o\")","v":"o"}]
[]
[null,"B","Finns kunskapsstöd lämpade för/anpassade till programområdet som säkerställer att patientsäkerhet beaktas vid beslut om och användning av medicinteknik, medicintekniska produkter, hjälpmedel och välfärdsteknik?",null,{"$f":"IF(D169>\"\",\"þ\",\"o\")","v":"o"}]
[]
[null,"C","Används medicinteknik, medicintekniska produkter, hjälpmedel och välfärdsteknik som bidrar till en säker vård inom programområdet?",null,"o"]
[]
[null,"D","Beskriv kortfattat utmaningarna/var det saknas information om nuläget:"]
[]
[]
[]
[null,3,"Fokusområde 3: Säker vård här och nu "]
[]
[]
[null,"3.1","Förmåga att förutse variationer och störningar i närtid"]
[]
[null,"A","Finns kunskap om möjliga variationer och störningar som kan uppstå i närtid och medföra förhöjd risk för vårdskador inom programområdet? Ex. organisatoriska störningar, i samband med överlämningar, för olika patientgrupper etc. ",null,{"$f":"IF(D182>\"\",\"þ\",\"o\")","v":"o"}]
[]
[null,"B","Finns för programområdet lämpliga/anpassade verktyg, metoder och arbetssätt för att monitorera och förutse variationer och störningar i närtid?",null,{"$f":"IF(D184>\"\",\"þ\",\"o\")","v":"o"}]
[]
[null,"C","Finns förmåga att upptäcka störningar och variationer i närtid inom programområdet?",null,"o"]
[]
[null,"D","Beskriv kortfattat utmaningarna/var det saknas information om nuläget:"]
[]
[]
[]
[]
[null,"3.2","Situationsanpassning"]
[]
[null,"A","Finns kunskap om hur det inom programområdet går att hantera variationer och störningar i närtid?",null,{"$f":"IF(D195>\"\",\"þ\",\"o\")","v":"o"}]
[]
[null,"B","Finns för programområdet lämpliga/anpassade verktyg, metoder och arbetssätt för detta?",null,{"$f":"IF(D197>\"\",\"þ\",\"o\")","v":"o"}]
[]
[null,"C","Finns förmåga att anpassa vården utifrån störningar och variationer i närtid inom programområdet?",null,"o"]
[]
[null,"D","Beskriv kortfattat utmaningarna/var det saknas information om nuläget:"]
[]
[]
[]
[null,4,"Fokusområde 4: Stärka analys, lärande och utveckling"]
[]
[]
[null,"4.1","Uppföljning av patientsäkerheten genom insamling och sammanställnig av data från flera källor"]
[]
[null,"A","Finns kunskap om vilken information och vilka datakällor som kan användas för att skapa förutsättningar för analys och lärande rörande patientsäkerhet inom programområdet? Ex. data om vårdskador, klagomål, riskanalyser, utredning av händelser, kvalitetsindikatorer, observationer, FRAM-analys, trender och omvärldsanalys.",null,{"$f":"IF(D210>\"\",\"þ\",\"o\")","v":"o"}]
[]
[null,"B","Finns verktyg och stöd för informationsinsamling som är lämpliga för/anpassade till programområdet?",null,{"$f":"IF(D212>\"\",\"þ\",\"o\")","v":"o"}]
[]
[null,"C","Samlas och sammanställs informationen?",null,"o"]
[]
[null,"D","Beskriv kortfattat utmaningarna/var det saknas information om nuläget:"]
[]
[]
[]
[]
[null,"4.2","Analyser som möjliggör lärande"]
[]
[null,"A","Finns kunskap om hur data, både kring risker och det som fungerar bra, ska analyseras ur ett säkerhetsperspektiv inom programområdet?",null,{"$f":"IF(D223>\"\",\"þ\",\"o\")","v":"o"}]
[]
[null,"B","Finns stöd och verktyg för analys lämpliga för/anpassade till programområdet?",null,{"$f":"IF(D225>\"\",\"þ\",\"o\")","v":"o"}]
[]
[null,"C","Sker analyser av patientsäkerhet av data från olika källor?",null,"o"]
[]
[null,"D","Beskriv kortfattat utmaningarna/var det finns brist på information:"]
[]
[]
[]
[]
[null,"4.3","Lärande från analyser och det egna arbetet"]
[]
[null,"A","Finns kunskap om hur resultat kan omvandlas till slutsatser och lärdomar rörande patientsäkerhet inom programområdet?",null,{"$f":"IF(D236>\"\",\"þ\",\"o\")","v":"o"}]
[]
[null,"B","Finns stöd för t.ex. strategi- och/eller verksamhetsutveckling?",null,{"$f":"IF(D238>\"\",\"þ\",\"o\")","v":"o"}]
[]
[null,"C","Används och omsätts lärdomar för att utveckla säkerheten vården?",null,"o"]
[]
[null,"D","Beskriv kortfattat utmaningarna/var det saknas information om nuläget:"]
[]
[]
[]
[]
[null,"4.4","Spridning av kunskap och lärdomar"]
[]
[null,"A","Finns kunskap om hur lärdomar om risker och vad som fungerar bra kan visualiseras och spridas på ett sätt som främjar utveckling inom och utanför den organisation där de tagits fram?  ",null,{"$f":"IF(D249>\"\",\"þ\",\"o\")","v":"o"}]
[]
[null,"B","Finns plattformar och stöd för kunskapsspridning?",null,{"$f":"IF(D251>\"\",\"þ\",\"o\")","v":"o"}]
[]
[null,"C","Sprids kunskap och lärdomar på ett sätt som kontinuerligt utvecklar vården och bland annat motverkar att negativa händelser upprepas?",null,"o"]
[]
[null,"D","Beskriv kortfattat utmaningarna/var det saknas information om nuläget:"]
[]
[]
[]
[null,5,"Fokusområde 5: Öka riskmedvetenhet och beredskap"]
[]
[]
[null,"5.1","Riskkontroll"]
[]
[null,"A","Finns kunskap om hur risk ska vägas mot nytta inom programområdet när vård bedrivs under förhållanden som medför ökad risk? Ex. vid personalbrist och överbeläggningar. ",null,{"$f":"IF(D264>\"\",\"þ\",\"o\")","v":"o"}]
[]
[null,"B","Finns stöd för risk-nytta-bedömningar riktade till berörda aktörer? ",null,{"$f":"IF(D266>\"\",\"þ\",\"o\")","v":"o"}]
[]
[null,"C","Genomförs relevanta risk-nytta-bedömningar på ett adekvat sätt i situationer som medför ökad risk inom programområdet?",null,"o"]
[]
[null,"D","Beskriv kortfattat utmaningarna/var det saknas information om nuläget:"]
[]
[]
[]
[]
[null,"5.2","Färdighetsträning och simulering för ökad beredskap"]
[]
[null,"A","Finns det kunskap om hur simulering samt beredskaps- och färdighetsträning kan användas för att utveckla färdigheter inom programområdet?",null,{"$f":"IF(D277>\"\",\"þ\",\"o\")","v":"o"}]
[]
[null,"B","Finns för kunskapsområdet lämpliga/anpassade stöd för att vägleda och främja användning av dessa utbildningsmetoder?",null,{"$f":"IF(D279>\"\",\"þ\",\"o\")","v":"o"}]
[]
[null,"C","Sker kompetensutveckling som omfattar dessa metoder?",null,"o"]
[]
[null,"D","Beskriv kortfattat utmaningarna/var det saknas information om nuläget:"]
[]
[]
[]
[]
[null,"5.3","Beredskap och planering för hantering av risker på lång sikt"]
[]
[null,"A","Finns kunskap om strategiska förändringar som på sikt kan påverka patientsäkerheten inom programområdet? Ex. kompetensförsörjning, digitalisering, nivåstrukturering och omställning till nära vård.",null,{"$f":"IF(D290>\"\",\"þ\",\"o\")","v":"o"}]
[]
[null,"B","Finns stöd som beskriver hur dessa kan bevakas och hanteras proaktivt?",null,{"$f":"IF(D292>\"\",\"þ\",\"o\")","v":"o"}]
[]
[null,"C","Genomförs proaktiv planering och riskhantering?",null,"o"]
[]
[null,"D","Beskriv kortfattat utmaningarna/var det saknas information om nuläget:"]
[]
[]
[]
[]
[null,"5.4","Omvärldsbevakning ur ett patientsäkerhetsperspektiv"]
[]
[null,"A","Finns kunskap om relevanta patientsäkerhetsperspektiv som bör omfattas av omvärldsbevakning inom programområdet? Ex. potentiella akuta eller långsiktiga risker, ny kunskap eller nya stöd.",null,{"$f":"IF(D303>\"\",\"þ\",\"o\")","v":"o"}]
[]
[null,"B","Finns stöd för systematisk omvärldsbevakning?",null,{"$f":"IF(D305>\"\",\"þ\",\"o\")","v":"o"}]
[]
[null,"C","Sker en systematisk omvärldsbevakning av relevanta patientsäkerhetsperspektiv?",null,"o"]
[]
[null,"D","Beskriv kortfattat utmaningarna/var det saknas information om nuläget:"]